{"text_format":"1","workbook":"xlsx","n_sheets":21,"sheets":["Cover Page","Contents","Facility Info","Operational Data","Operational Summary","Perf. Form 1","Energy Form 1","Permit Compliance","Improvements","Public Liasion","CO2 N2O","Residue Quality ","Air (periodic)","Air (CEMS)","HCl","SO2","NOx","TOC","Particulates","CO 95% 10 min","NH3"],"not_rendered":{"charts":7,"images":3,"macros":1,"external_links":0,"defined_names":21,"comments":0,"pivot_tables":0},"unopened":[],"bounds":{"document_bytes":16777216,"sheet_cells":100000,"rows_first":2000,"rows_last":500,"rows_between":2000,"halvings":0,"cell_chars":16384,"cell_head_chars":4096},"cells_cut":0,"cells_raw":0,"read":"whole","date_system":"1900"}

{"sheet":"Cover Page","index":0,"n_rows":53,"n_cols":14,"rows_kept":53,"cut":false,"hidden":false,"merged":[[48,2,48,3],[48,6,48,8],[52,2,52,3],[36,1,36,8],[40,2,40,8],[42,2,42,4],[44,2,44,4],[46,2,46,3],[46,6,46,8],[13,13,18,15],[34,1,34,8],[0,3,5,6],[7,1,23,8],[28,1,28,8],[30,1,30,8],[32,1,32,8]]}
[null,null,null,"Add company logo"]
[null,null,null,null,null,null,null,null,null,null,null,null,null,"Version 22.3  30/11/22"]
[]
[]
[]
[]
[]
[null,"Add photo"]
[]
[]
[]
[]
[null,null,null,null,null,null,null,null,null,null,null,null,null,"Notes:"]
[null,null,null,null,null,null,null,null,null,null,null,null,null,"This template may require adjustments by individual operators to meet specific reporting requirements as defined in the site Permit(s)"]
[]
[]
[]
[]
[]
[]
[]
[]
[]
[]
[]
[]
[]
[]
[null,"Annual Performance Report 2022"]
[]
[null,"Permit EPR/EP3034SN"]
[]
[null,"Eastcroft Energy from Waste Plant"]
[]
[]
[]
[null,"WasteNotts (Reclamation) Limited"]
[]
[null,"Year:",2022]
[]
[null,"Address:","Incinerator Road, Off Cattle Market Road, Nottingham NG23JH"]
[]
[null,"Tel: ","0115 9869505"]
[]
[null,"Email: ","leigh.hornsby@fccenvironment.co.uk"]
[]
[null,"Prepared by:","Leigh Hornsby",null,null,"Position:","Environment Manager"]
[]
[null,"Approved by:","Ashley Corke",null,null,"Position:","General Manager"]
[]
[null,"Version:",1]
[]
[null,"Issue Date:","2023-01-31"]

{"sheet":"Contents","index":1,"n_rows":45,"n_cols":11,"rows_kept":45,"cut":false,"hidden":false,"merged":[[20,1,20,6],[12,1,12,6],[44,0,47,9],[37,1,37,6],[38,1,38,6],[39,1,39,6],[40,1,40,6],[41,1,41,6],[42,1,42,6],[36,1,36,6],[22,1,22,6],[23,1,23,6],[24,1,24,6],[27,1,27,6],[28,1,28,6],[29,1,29,6],[30,1,30,6],[31,1,31,6],[32,1,32,6],[35,1,35,6],[18,1,18,6],[19,1,19,6],[4,10,7,14],[8,1,8,6],[3,1,3,6],[4,1,4,6],[5,1,5,6],[6,1,6,6],[7,1,7,6],[11,1,11,6],[13,1,13,6],[14,1,14,6],[9,1,9,6],[10,1,10,6],[15,1,15,6],[16,1,16,6],[17,1,17,6]]}
[{"$f":"+'Cover Page'!$B$29","v":"Annual Performance Report 2022"},null,null,null,{"$f":"+'Cover Page'!$B$33","v":"Eastcroft Energy from Waste Plant"}]
[]
["Contents",null,null,null,null,null,null,null,null,null,"Notes:"]
["Section","Subject",null,null,null,null,null,"Page ",null,null,"Section references and Page nos. to be inserted"]
[null,"Facility Information",null,null,null,null,null,3,null,null,"Sections and Subjects may require adjustment by individual operators to meet specific reporting requirements as defined in the sites Permit(s)"]
[null,"Operational Data",null,null,null,null,null,4]
[null,"Operational Summary",null,null,null,null,null,5]
[null,"Performance Form 1",null,null,null,null,null,6]
[null,"Energy Form 1",null,null,null,null,null,7]
[null,"Permit Compliance",null,null,null,null,null,8]
[null,"Improvements",null,null,null,null,null,9]
[null,"Public Liasion",null,null,null,null,null,10]
[null,"Carbon dioxide and nitrous oxide emissions",null,null,null,null,null,11]
[null,"Residue Quality ",null,null,null,null,null,12]
[null,"Emissions to Air (periodically monitored)",null,null,null,null,null,13]
[null,"Emissions to Air (continuously monitored)",null,null,null,null,null,14]
[null,"Hydrogen Chloride emissions",null,null,null,null,null,15]
[null,"Sulphur Dioxdie emsissions",null,null,null,null,null,16]
[null,"Oxides of Notrigen emissions",null,null,null,null,null,17]
[null,"Total Organic Carbon emissions",null,null,null,null,null,18]
[null,"Particulate Matter emissions",null,null,null,null,null,19]
[null,"Carbon Monoxide emissions",null,null,null,null,null,20]
[null,"Ammonia emissions",null,null,null,null,null,21]
[]
[]
[]
["Version Control"]
["Section","Information",null,null,null,null,null,"Date"]
[]
[]
[]
[]
[]
[]
["Distribution"]
["Copy","Name, Role",null,null,null,null,null,"No."]
[]
[]
[]
[]
[]
[]
[]
[]
["This report is required under the Industrial Emissions Directive’s Article 55(2) requirements on reporting and public information on waste incineration plants and co-incineration plants, which require the operator to produce an annual report on the functioning and monitoring of the plant and make it available to the public. "]

{"sheet":"Facility Info","index":2,"n_rows":22,"n_cols":11,"rows_kept":22,"cut":false,"hidden":false,"merged":[[4,0,17,8],[21,0,53,8],[4,10,13,13],[21,10,30,13]]}
[{"$f":"+'Cover Page'!$B$29","v":"Annual Performance Report 2022"},null,null,null,{"$f":"+'Cover Page'!$B$33","v":"Eastcroft Energy from Waste Plant"}]
[]
["Plant Description and Design",null,null,null,null,null,null,null,null,null,"Notes:"]
[]
["The EfW facility currently comprises two incineration streams each capable of burning up to 11.7 tonnes/hour of municipal and light commercial and industrial waste. The plant has a theoretical capacity of just over 200,000 tonnes per annum; however with planned maintenance the annual throughput is approximately 185,000 tonnes. The site has planning permission to add a third line to the plant which is included in the scope of the Environmental Permit (EP3034SN) but has yet to be developed. \n\nThe facility generates around 50 tonnes of steam per hour with no electrical generation undertaken at the \nEastcroft facility. Steam is exported to a third party (Nottingham City Council, formerly EnviroEnergy) who operate a combined heat and power facility providing electricity and feeding into Nottingham's district heating network.\n",null,null,null,null,null,null,null,null,null,"Include summary of plant design, design capacity, no. of combustion lines, electrical and heat capacity and any other general information that descibes the facility, its location and purpose "]
[]
[]
[]
[]
[]
[]
[]
[]
[]
[]
[]
[]
[]
[]
["Summary of Operational Processes and Procedures"]
[]
["Municipal waste and non-hazardous commercial/industrial/trade waste is delivered to site by lorry and tipped into one of two refuse bunkers inside the tipping hall. Deliveries are typically made from Monday to Saturday morning. Waste is transferred from the bunkers by grab crane into the feed chute of each incinerator stream. Waste is only fed to the incinerator if the temperature is above 850°C. \n\nEach incinerator stream has a moving grate on which the waste is burned, with preheated air being injected \nfrom below the grate. Combustion air is drawn from the tipping hall and boiler hall to reduce odours and dust levels in these areas and fed to the furnace via an air preheater which can raise the temperature of the air up to 160°C. Two auxiliary burners, fired on gas oil, are installed halfway up each combustion chamber to maintain temperatures above the 850°C threshold. The auxiliary burners are also used to pre-heat the incinerators before start up.\n\nAmmonium hydroxide is injected into the furnaces to reduce emissions of nitrogen oxides (this technique is known as selective non-catalytic reduction or SNCR). Hot gases from the combustion chamber pass to a boiler in which steam is raised and sent to the London Road Heat Station (operated by Nottingham City Council, formerly EnviroEnergy) for supply of heat to the district heating system and generation of electricity. Flue gases leaving the boiler are cooled to about 130°C in the economiser to achieve the correct temperature for gas treatment. \n\nIncinerator bottom ash is quenched in water and collected in a residuals bunker inside the building. The silo is emptied regularly and the bottom ash is sent for metal extraction and use as a substitute aggregate. \n\nFly ash entrained within the incinerator exhaust gases, together with any accumulations of dust removed from the walls of the economiser by the shot cleaning system, is treated in the air pollution control equipment.Each incinerator stream has its own dedicated air pollution control equipment. Cooled flue gases leaving the economiser are dosed with a mixture of hydrated lime, activated carbon and recirculated reagent, in order to reduce acid gases (by reaction with the lime), and other substances such as heavy metals and hydrocarbons (by adsorption onto the activated carbon). The exhaust gases and reagent particles are then filtered in a four compartment fabric filter to remove the dust burden. The fabric filters are regularly cleaned by reverse jet pulses, and the collected end product is stored in the APC residue silo. The APC residue silo is regularly emptied and the residue used to treat industrial acidic wastes before final disposal in a suitably licensed landfill site. \n\nThe treated exhaust gases from both streams are discharged via the 91m high stack. The final emissions from the municipal waste incinerator are continuously monitored for particulate matter, sulphur dioxide, nitrogen oxides, carbon monoxide, hydrogen chloride, volatile organic compounds and ammonia prior to entry into the main stack.\n",null,null,null,null,null,null,null,null,null,"Include summary of key processes and procedures such as (but not limited to); waste reception, control rooms, grate, bed and bolier, energy & heat  generation, cooling systems, residue management, emission controls, health and safety systems, maintenance"]

{"sheet":"Operational Data","index":3,"n_rows":65,"n_cols":11,"rows_kept":65,"cut":false,"hidden":false,"merged":[[52,0,56,0],[5,10,6,10],[7,10,18,10],[33,1,38,1],[3,1,3,2],[7,1,19,1],[23,1,26,1],[28,1,29,1]]}
["Annual Performance Report 2022",null,null,null,"Eastcroft Energy from Waste Plant"]
[]
["Operational Data",null,null,null,null,null,null,null,null,null,"Notes:"]
["Plant Size",null,null,"tonnes pa",null,"MWth",null,"MWe",null,null,"* - RDF to include SRF "]
["No. of combustion lines",1,null,"No. of Turbines:",null,1,null,null,null,null,"** - CHP plants only"]
[null,null,null,null,null,null,null,null,null,null,"2020 updates include;  heat in MWh, water in Litres, NCV in MJ/kg"]
["Waste types received","Unit","Q1","Q2","Q3","Q4","Year Total","%"]
["Household / Local Authority","tonnes",45999.642000000007,38408.570000000007,33683.130000000005,43541.650000000009,161632.99200000003,0.88736951289767141,null,null,"Availabiity Definition: 'the availability of a line is to be calculated by the number of hours the line reported Continuously Monitored emission levels to the Regulator through the calendar year divided by the total number of hours in that year. \nThe overall plant availability is calculated as the Mean of all lines in the plant. For clarity this includes periods of Other Than Normal Operating Conditions (OTNOC) and abnormal operation.'  \n\nRationale: The primary function of an Energy from Waste facility is the disposal of waste. It follows therefore that the availability of a plant is determined by the period of time a facility spends undertaking this activity."]
["Commercial & Industrial ",null,5676.4599999999991,4735.6399999999994,3322.5499999999993,6780.82,20515.469999999998,0.11263048710232862]
["Hazardous ",null,null,null,null,null,0,"-"]
["Clinical",null,null,null,null,null,0,"-"]
["Waste wood (biomass) ",null,null,null,null,null,0,"-"]
["Refuse Derived Fuel * - H'hold/LA",null,null,null,null,null,0,"-"]
["Refuse Derived Fuel *  - C&I",null,null,null,null,null,0,"-"]
["Other [Please specify]",null,null,null,null,null,0,"-"]
["Other [Please specify]"]
["Other [Please specify]"]
["Total waste received",null,51676.102000000006,43144.210000000006,37005.680000000008,50322.470000000008,182148.46200000003,1]
["Rejected Waste ",null,null,null,null,null,0,"-"]
["Unprocessed waste transferred out",null,null,null,null,null,0,"-"]
["Total waste combusted",null,51676.102000000006,43144.210000000006,37005.680000000008,50322.470000000008,182148.46200000003,1]
[]
["Energy Useage / Export","Unit","Q1","Q2","Q3","Q4","Year Total","KWh/te"]
["Power Generated","MWh",null,null,null,null,0,"-"]
["Power Exported",null,null,null,null,null,0,"-"]
["Power Used on site",null,2672.7839999999992,2193.8179999999998,2033.6660000000004,2493.2240000000002,9393.4919999999984,51.570526025083851]
["Power Imported",null,2672.7839999999992,2193.8179999999998,2033.6660000000004,2493.2240000000002,9393.4919999999984,51.570526025083851]
["Parasitic Load","%",null,null,null,null,"-"]
["Thermal Energy Produced **","MWh",101203,82293,79472,98190,361158,1982.7672220476938]
["Thermal Energy Exported **",null,101203,82293,79472,98190,361158,1982.7672220476938]
["R1 value (if applicable)"]
[]
["Waste Disposal & Recovery","Unit","Q1","Q2","Q3","Q4","Year Total","% inputs"]
["APC Residues - produced","tonnes",1103.3800000000001,857.7,828.07999999999993,1136.5800000000002,3925.74,2.1552419146970338E-2]
["IBA - produced",null,9413.5,7987.82,7704.67,9152.76,34258.75,0.18808146730330336]
["Metals recycling"]
["Other",null,0,0,0,0,0,"-"]
["Other",null,0,0,0,0,0,"-"]
["Other",null,0,0,0,0,0,"-"]
[]
["Raw Material Usage","Unit","Q1","Q2","Q3","Q4","Year Total","kg or Ltr /te"]
["Mains Water","ltrs",799,696,2981,2272,6748,3.7046703144822592E-2]
["Other Water","ltrs","N/A","N/A","N/A","N/A",0,"-"]
["Ammonia","kgs",146499.72577859246,107669.51307282201,97387.761612252405,129023.0565328884,480580.05699655524,2.6383975561460145]
["Urea","kgs","N/A","N/A","N/A","N/A",0,"-"]
["Activated Carbon","kgs",159070,129393,136350,152474,577287,3.1693212979201544]
["Lime / hydrated lime","kgs",25884,21600,22242,25284,95010,0.52160747862916346]
["Fuel oil","ltrs",7666,5897,65370,35518,114451,0.62833909626972295]
["Gas","cf","N/A","N/A","N/A","N/A",0]
["Other",null,"N/A","N/A","N/A","N/A",0]
[]
["Summary ","Line/Unit","Q1","Q2","Q3","Q4","Year Total",null,null,"Hrs in year "]
["Availability of waste combustion by line, hrs",1,2159,1792,1841.5,2009,7801.5,0.89,null,8760]
[null,2,2153,1806,1893,2198.5,8050.5,0.91900000000000004]
[null,3,null,null,null,null,0,"x %"]
[null,4,null,null,null,null,0,"x %"]
[null,5,null,null,null,null,0,"x %"]
["Overall Availability, mean avg. of all lines, hrs",null,4312,3598,3734.5,4207.5,7926,0.90449999999999997]
["Hours of turbine operations, hrs",1,null,null,null,null,0,"x %"]
["Hours of turbine operations, hrs",2,null,null,null,null,0,"x %"]
["Hours of heat / steam export",null,4312,3598,3734.5,4207.5,15852,"n/a"]
["Net Calorific Value of waste","MJ/kg",9.4,8.9,8,8.9,null,"-"]
["Abnormal Events","qty.",null,null,null,null,0,"no"]
["Abnormal operation","hours",null,null,null,null,0,0]
["Permit Breaches","qty.",0,1,0,2,3,"yes"]

{"sheet":"Operational Summary","index":4,"n_rows":31,"n_cols":11,"rows_kept":31,"cut":false,"hidden":false,"merged":[[4,0,26,8],[30,0,51,8],[4,10,13,13],[30,10,39,13]]}
[{"$f":"+'Cover Page'!$B$29","v":"Annual Performance Report 2022"},null,null,null,{"$f":"+'Cover Page'!$B$33","v":"Eastcroft Energy from Waste Plant"}]
[]
["Summary of Plant Operations and Maintenance during the reporting year",null,null,null,null,null,null,null,null,null,"Notes:"]
[]
["During 2022 the facility ran for 15,852 hours across the 2 lines representing an availability of 90.15% with 182,148 tonnes delivered to site compared to a permit limit of 200,000 tonnes per annum. Nearly all of this waste was delivered by the local authorities of Nottingham and the surrounding area and most other wastes being categorised as municipal (Chapter 20 of the List of Wastes Regulations). \n\nThe facility submitted 3 schedule notification during the year. In May a short spike in HCl caused an exceedance of 63.2 mg/m3 against a threshold of 60. In October a fault in the plant logic combined with a failure of the UPS caused an exceedance of the daily HCl threshold of 10mg/m3 with an average reading of 12.57 mg/m3. In December a violent exothermic event, presumed to be a large gas cylinder explosion, caused a brief exceedance of the half-hourly TOC threshold with a reading of 27.9mg/m3 against a threshold of 20. No periods of abnormal operation or substantiated complaints were received. \n\nThe plant provided 361 GWh of energy in the form of steam and hot water to the Nottingham City Council (formerly EnviroEnergy) facility who operate a combined heat and power station, providing electricity to private customers, the national grid and providing heating to households and commercial premises through their district heating system. Eastcroft receives all electrical supply and water for the process from the Nottingham City Council facility. \n\nThe main period of downtime related to a planned maintenance period within where both routine maintenance that cannot be undertaken whilst the plant is operational took place and some major replacements to boiler parts were also undertaken. The superheaters and ash dischargers were also replaced along with a complete replacement of the bags in the baghouse. Further modifications and optimisation to the combustion and other processes were undertaken throughout the year.",null,null,null,null,null,null,null,null,null,"Include summary of key operational and/or mainteanance activity undertaken in the year, such as any major component upgrades and/or replacements "]
[]
[]
[]
[]
[]
[]
[]
[]
[]
[]
[]
[]
[]
[]
[]
[]
[]
[]
[]
[]
[]
[]
[]
["Summary of Residue Handling for the reporting year"]
[]
["Incinerator Bottom Ash (IBA) is sampled 4 times per year for permit compliance purposes, in particular for Total Organic Content where the permit has a limit of 3%. Full compliance was achieved during 2022; no values were above 3% with an average value of 1.34% achieved. \n\nAdditional testing of IBA is undertaken in order to correctly classify the IBA. 24 samples (2 per month) were taken in 2022 to assess for any hazardous content within the IBA. During 2022 all 24 sample results were returned confirming the classification of the IBA as non-hazardous. \n\nAll metals within the IBA are sent along with the non-hazardous IBA to a third party company who operate a permitted facility dedicated to management of bottom ash. Metals are segregated and sent for recycling while the remaining incinerator bottom ash is used as a substitute aggregate material for use within the construction industry.\n\nAir Pollution Control Residues (APCr) formed from the cleaning of the flue gases are also analysed on a quarterly basis, albeit with no limits set within the permit. The APCr is tankered to a permitted treatment site where the material is used to neutralise highly acidic wastes before the resulting residue is sent for disposal.",null,null,null,null,null,null,null,null,null,"Include in here a summary of residue handling regimes and destinations "]

{"sheet":"Perf. Form 1","index":5,"n_rows":54,"n_cols":10,"rows_kept":54,"cut":false,"hidden":false,"merged":[[47,0,47,1],[49,0,49,9],[50,0,51,9],[38,0,38,9],[39,0,40,9],[43,0,43,1],[43,2,43,9],[45,0,45,1],[46,0,46,1],[36,0,36,3],[36,4,36,5],[36,7,36,8],[37,0,37,3],[37,4,37,5],[37,7,37,8],[34,0,34,3],[34,4,34,5],[34,7,34,8],[35,0,35,3],[35,4,35,5],[35,7,35,8],[31,0,31,3],[31,7,31,8],[32,0,32,3],[32,4,32,5],[32,7,32,8],[33,0,33,3],[33,4,33,5],[33,7,33,8],[23,0,23,3],[23,4,23,5],[23,6,23,7],[23,8,23,9],[25,0,25,9],[26,0,28,9],[21,0,21,1],[21,2,21,3],[21,4,21,5],[21,6,21,7],[21,8,21,9],[22,0,22,3],[22,4,22,5],[22,6,22,7],[22,8,22,9],[19,0,19,1],[19,2,19,3],[19,4,19,5],[19,6,19,7],[19,8,19,9],[20,0,20,1],[20,2,20,3],[20,4,20,5],[20,6,20,7],[20,8,20,9],[17,0,17,1],[17,2,17,3],[17,4,17,5],[17,6,17,7],[17,8,17,9],[18,0,18,1],[18,2,18,3],[18,4,18,5],[18,6,18,7],[18,8,18,9],[15,0,15,1],[15,2,15,3],[15,4,15,5],[15,6,15,7],[15,8,15,9],[16,0,16,9],[13,0,13,1],[13,2,13,3],[13,4,13,5],[13,6,13,7],[13,8,13,9],[14,0,14,3],[14,4,14,5],[14,6,14,7],[14,8,14,9],[11,0,11,1],[11,2,11,3],[11,4,11,5],[11,6,11,7],[11,8,11,9],[12,0,12,1],[12,2,12,3],[12,4,12,5],[12,6,12,7],[12,8,12,9],[9,0,9,9],[10,0,10,1],[10,2,10,3],[10,4,10,5],[10,6,10,7],[10,8,10,9],[2,0,2,4],[2,6,2,8],[3,1,3,4],[5,3,5,4],[5,6,5,7],[8,0,8,1],[8,2,8,3],[8,4,8,5],[8,6,8,7],[8,8,8,9]]}
[{"$f":"+'Cover Page'!C39","v":2022}," Annual Reporting Performance Form 1"]
[]
[{"$f":"+'Cover Page'!B31","v":"Permit EPR/EP3034SN"},null,null,null,null,"Operator: ",{"$f":"+'Cover Page'!B37:I37","v":0}]
["Facility:",{"$f":"+'Cover Page'!B33:I33","v":"Eastcroft Energy from Waste Plant"},null,null,null,"Form:","Performance 1"]
[]
["Reporting  Period from: ",null,null,"2022-01-01",null,"to:","2022-12-31"]
[]
[2022,"Annual Reporting of Waste Disposal and Recovery"]
["Waste Description",null,"Disposal Route(s)",null,"Disposal Tonnes",null,"Recovery Tonnes",null,"% / tonne of waste incinerated"]
["1) Hazardous Wastes"]
["APC Residues",null,"D3",null,3925.74,null,null,null,2.1552419146970338E-2]
["IBA",null,null,null,null,null,null,null,"-"]
[null,null,null,null,null,null,null,null,"-"]
[null,null,null,null,null,null,null,null,"-"]
["Total Hazardous Waste",null,null,null,3925.74,null,0,null,2.1552419146970338E-2]
[]
["2) Non-Hazardous Wastes"]
["IBA",null,"R05",null,null,null,34258.75,null,0.18808146730330336]
["Ferrous Metal",null,null,null,null,null,null,null,"-"]
["Process Water",null,null,null,null,null,null,null,"-"]
[null,null,null,null,null,null,null,null,"-"]
[null,null,null,null,null,null,null,null,"-"]
["Total Non-Hazardous Waste",null,null,null,0,null,34258.75,null,0.18808146730330336]
["TOTAL WASTE",null,null,null,3925.74,null,34258.75,null,0.2096338864502737]
[]
["Operator’s comments :"]
[]
[]
[]
[]
[2022,"Annual Reporting of Water and Other Raw Material Usage"]
["Raw Material",null,null,null,"Usage",null,"Unit","Specific Useage",null,"Unit"]
["Mains Water",null,null,null,6748,null,"m3",3.7046703144822592E-2,null,"m3/te"]
["Total Water",null,null,null,6748,null,"m3",3.7046703144822592E-2,null,"m3/te"]
["Urea / Ammonia",null,null,null,480580.05699655524,null,"kg",2.6383975561460145,null,"kg/te"]
["Activated Carbon",null,null,null,577287,null,"kg",3.1693212979201544,null,"kg/te"]
["Lime / hydrated lime / Sodium Bicarb.",null,null,null,95010,null,"kg",0.52160747862916346,null,"kg/te"]
[]
["Operator’s comments :"]
[]
[]
[]
[2022,"Annual Reporting of other performance indicators "]
["Parameter",null,"Results by Line"]
[null,null,"A1","A2","A3","A4","A5",null,"Turbine 1","Turbine 2"]
["Operating hours for the year, hours",null,7801.5,8050.5]
["Number of periods of abnormal operation, qty.",null,0,0]
["Cumulative hours of abnormal operation for this year, hours"]
[]
["Operator’s comments :"]
[]
[]
[]
["Signed: ",null,null,null,null,null,"Date:"]

{"sheet":"Energy Form 1","index":6,"n_rows":29,"n_cols":7,"rows_kept":29,"cut":false,"hidden":false,"merged":[[15,0,15,2],[15,3,15,4],[15,6,15,8],[17,0,17,8],[18,0,24,8],[13,0,13,2],[13,3,13,4],[13,6,13,8],[14,0,14,2],[14,3,14,4],[14,6,14,8],[11,0,11,2],[11,3,11,4],[11,6,11,8],[12,0,12,2],[12,3,12,4],[12,6,12,8],[9,0,9,2],[9,3,9,4],[9,6,9,8],[10,0,10,2],[10,3,10,4],[10,6,10,8],[2,6,2,8],[4,1,4,4],[6,3,6,4],[6,6,6,7],[8,0,8,2],[8,3,8,4],[8,6,8,8]]}
[{"$f":"+'Cover Page'!C39","v":2022}," Annual Reporting of Energy Usage/Export"]
[]
[{"$f":"+'Cover Page'!B31","v":"Permit EPR/EP3034SN"},null,null,null,null,"Operator: ",{"$f":"+'Cover Page'!B37:I37","v":0}]
[]
["Facility:",{"$f":"+'Cover Page'!B33:I33","v":"Eastcroft Energy from Waste Plant"},null,null,null,"Form:","Energy 1"]
[]
["Reporting  Period from: ",null,null,{"$f":"+'Perf. Form 1'!D6:E6","v":"2022-01-01"},null,"to:",{"$f":"+'Perf. Form 1'!G6:H6","v":"2022-12-31"}]
[]
["Energy Source",null,null,"Energy Usage",null,"Unit","Specific Useage (KWh/tonne incinerated"]
["Electricity Produced",null,null,0,null,"MWh","-"]
["Electricity Imported   ",null,null,9393.4919999999984,null,"MWh",51.570526025083851]
["Electricity Exported",null,null,0,null,"MWh","-"]
["Gas Oil",null,null,93.85,null,"tonnes"]
["Steam/hot water exported",null,null,361158,null,"GWh",1982.7672220476938]
[]
[]
[]
["Operator’s comments :"]
[]
[]
[]
[]
[]
[]
[]
[]
[]
[]
["Signed: ",null,null,null,null,null,"Date:"]

{"sheet":"Permit Compliance","index":7,"n_rows":34,"n_cols":12,"rows_kept":34,"cut":false,"hidden":false,"merged":[[26,0,26,10],[18,0,18,10],[31,1,31,3],[31,4,31,6],[31,7,31,9],[27,1,27,3],[27,4,27,6],[27,7,27,9],[28,1,28,3],[28,4,28,6],[28,7,28,9],[23,1,23,3],[23,4,23,6],[23,7,23,9],[24,1,24,3],[24,4,24,6],[32,1,32,3],[32,4,32,6],[32,7,32,9],[29,1,29,3],[29,4,29,6],[29,7,29,9],[30,1,30,3],[30,4,30,6],[30,7,30,9],[24,7,24,9],[21,1,21,3],[21,4,21,6],[21,7,21,9],[22,1,22,3],[22,4,22,6],[22,7,22,9],[19,1,19,3],[19,4,19,6],[19,7,19,9],[20,1,20,3],[20,4,20,6],[20,7,20,9],[16,2,16,4],[16,5,16,8],[15,2,15,4],[15,5,15,8],[16,0,16,1],[13,5,13,8],[14,0,14,1],[14,2,14,4],[14,5,14,8],[15,0,15,1],[7,0,7,1],[7,2,7,8],[8,0,8,1],[8,2,8,4],[8,5,8,8],[8,11,17,14],[33,4,33,8],[9,0,9,1],[9,2,9,4],[9,5,9,8],[10,0,10,1],[10,2,10,4],[10,5,10,8],[11,0,11,1],[11,2,11,4],[11,5,11,8],[12,0,12,1],[12,2,12,4],[12,5,12,8],[13,0,13,1],[13,2,13,4]]}
[{"$f":"+'Cover Page'!$B$29","v":"Annual Performance Report 2022"},null,null,null,{"$f":"+'Cover Page'!$B$33","v":"Eastcroft Energy from Waste Plant"}]
[]
["Summary of Permit Compliance"]
[]
["Compliance with permit limits for continuously monitored pollutants"]
[]
["The plant met its emission limits as shown in the table below:"]
["Substance",null,"Percentage time compliant during operation",null,null,null,null,null,null,null,null,"Notes:"]
[null,null,"Half-hourly limit",null,null,"Daily limit",null,null,null,null,null,"Report to 2 decimal places, i.e. xx.xx%\n\nPlease provide a brief summary of each notification or non-compliance in the table (rather than just referring to notifications that were sent to the Regulator).  \n\n"]
["Particulates",null,1,null,null,1]
["Oxides of nitrogen",null,1,null,null,1]
["Sulphur dioxide",null,1,null,null,1]
["Carbon monoxide",null,"\n100.00% 95% of 10-min averages",null,null,1]
["Total organic carbon",null,0.99990000000000001,null,null,1]
["Hydrogen chloride",null,0.99990000000000001,null,null,0.99660000000000004]
["Hydrogen fluoride",null,1,null,null,1]
[null,null,"xx.xx %",null,null,"xx.xx %"]
[]
["Summary of any notifications or non-compliances under the permit"]
["Date","Summary of notification or non-compliance [including Line/Reference]",null,null,"Reason ",null,null,"Measures taken to prevent reoccurrence"]
["24.05.22","Short spike of HCl on line 2 detected by CEMS",null,null,"Higher Chloride feedstock than expected",null,null,"Feedstock inspected and customers informed"]
["31.10.22","Failure of the UPS along with a fault in the plant logic lead to the lime dosing operating at minimum despite rising HCl levels which caused an exceedence of the daily threshold on line 2",null,null,"Failure of UPS combined with fault in the DCS logic",null,null,"UPS replaced and logic rewritten to correct fault"]
["17.12.2022","Exceedance of TOC threhold on line 1",null,null,"Explosion on the grate most likely caused by a gas cylinder",null,null,"Customers contacted and audits of customer sites arranged"]
[]
[]
[]
["Summary of any complaints received and actions to taken to resolve them."]
["Date","Summary of complaint [including Line/Reference]",null,null,"Reason *",null,null,"Measures taken to prevent reoccurrence"]
[]
[]
[]
[]
[]
[null,null,null,null,"* including whether substantiated by the operator or the EA"]

{"sheet":"Improvements","index":8,"n_rows":39,"n_cols":5,"rows_kept":39,"cut":false,"hidden":false,"merged":[[37,0,37,8],[38,0,47,8],[4,0,4,8],[15,0,15,8],[26,0,26,8],[27,0,35,8],[5,0,13,8],[16,0,24,8]]}
[{"$f":"+'Cover Page'!$B$29","v":"Annual Performance Report 2022"},null,null,null,{"$f":"+'Cover Page'!$B$33","v":"Eastcroft Energy from Waste Plant"}]
[]
["Summary of Plant Improvements"]
[]
["Summary of any efficiency improvements that have been completed within the year."]
["Ongoing replacement of lighting with LED units to reduce electricity consumption."]
[]
[]
[]
[]
[]
[]
[]
[]
[]
["Summary of any permit improvement conditions that have been completed within the year and the resulting environmental benefits."]
["IC17 of the draft permit variation was removed prior to issue due to completion of the BAT Conclusions Returns spreadsheet and agreement that the plant met the requirements for gross energy efficiency."]
[]
[]
[]
[]
[]
[]
[]
[]
[]
["Summary of any changes to the plant or operating techniques which required a variation to the permit and a summary of the resulting environmental impact."]
[]
[]
[]
[]
[]
[]
[]
[]
[]
[]
["Summary of any other improvements made to the plant or planned to be made and a summary of the resulting environmental benefits."]
["Increased use of inconel tubes in the boiler is expected to improve tube life and reduce the need for unplanned outage and consequently use of furnace flame."]

{"sheet":"Public Liasion","index":9,"n_rows":29,"n_cols":5,"rows_kept":29,"cut":false,"hidden":false,"merged":[[23,0,24,1],[23,2,24,8],[25,0,26,1],[25,2,26,8],[28,0,28,8],[17,0,18,1],[17,2,18,8],[19,0,20,1],[19,2,20,8],[21,0,22,1],[21,2,22,8],[16,0,16,1],[16,2,16,8],[5,0,5,1],[5,2,5,8],[6,0,7,1],[6,2,7,8],[8,0,9,1],[8,2,9,8],[10,0,11,1],[10,2,11,8],[12,0,13,1],[12,2,13,8],[15,0,15,8]]}
[{"$f":"+'Cover Page'!$B$29","v":"Annual Performance Report 2022"},null,null,null,{"$f":"+'Cover Page'!$B$33","v":"Eastcroft Energy from Waste Plant"}]
[]
["Details of Public & Stakeholder Liasion"]
[]
["Summary of events held during the reporting year."]
["Date",null,"Description"]
["13.03.2022",null,"Biannual Community Liaison Group meeting"]
[]
["16.11.2022",null,"Biannual Community Liaison Group meeting"]
[]
[]
[]
[]
[]
[]
["List of events planned for next year"]
["Date",null,"Description"]
[null,null,"2 x biannual Community Liaison Group meetings to be arranged for 2023"]
[]
[]
[]
[]
[]
[]
[]
[]
[]
[]
["If you wish to be involved in the public liasion programme, please contact info.eastcroft@fccenvironment.co.uk 0115 9869505 or visit https://eastcroft.fccenvironment.co.uk/contact-us/ "]

{"sheet":"CO2 N2O","index":10,"n_rows":22,"n_cols":5,"rows_kept":22,"cut":false,"hidden":false,"merged":[[22,0,23,2],[4,0,4,2],[8,1,8,2],[10,0,10,2],[12,1,12,2],[15,0,15,2],[17,1,17,2],[19,4,19,14],[17,4,17,14],[12,4,12,14],[8,4,8,14],[19,1,19,2]]}
[{"$f":"+'Cover Page'!$B$29","v":"Annual Performance Report 2022"},null,{"$f":"+'Cover Page'!$B$33","v":"Eastcroft Energy from Waste Plant"}]
[]
["Carbon dioxide emissions and biogenic content of waste inputs",null,null,null,"Notes:"]
[]
["Carbon dioxide emissions (all types of plant)"]
["Annual mass of carbon dioxide released","x tonnes ",205443]
["Annual mass of carbon dioxide released per tonne of waste burned","x tonnes ",1.1299999999999999]
["Annual mass of carbon dioxide released per MWh of energy exported","x tonnes ",0.56999999999999995]
["Description of how annual carbon dioxide mass emission has been calculated","CO2 CEMS data and flow used to calculate annual emission in tonnes for each line",null,null,"Note 1: Where available, data from CO2 CEMS should be used. Otherwise, where no CEMS data is available, a suitable emissions factor should be used based on the tonnage of waste burned e.g.0.992 tCO2/t waste as per Tolvik report 2021, or other justified emissions factor  - refer to embedded Environment Agency guidance note above or updated version for suitable descriptive text."]
[]
["Nitrous oxide emissions (only plants which use ammonia or urea to abate NOx emissions)"]
["Annual mass emissions of nitrous oxide","x tonnes ",0.95]
["Description of how annual nitrous oxide mass emission has been calculated","N2O CEMS data and flow used to calculate annual emission in tonnes for each line",null,null,"Note 2: Where available, data from N2O CEMS should be used, or if no CEMS data is available, from periodic monitoring. Otherwise, a suitable emissions factor should be used based on the tonnage of waste burned e.g. 0.0981 kgN20/t waste as per 2021 Pollution Inventory data for plants with urea-based SNCR - refer to embedded Environment Agency guidance note above or updated version for suitable descriptive text."]
["Total annual carbon dioxide and nitrous oxide emissions as carbon dioxide equivalent (whereby 1 t nitrous oxide is equivalent to 298 t carbon dioxide)","x tonnes CO2e",205613]
[]
["Biogenic fraction of the waste and biogenic CO2 emissions (only plants burning residual municipal waste, refuse derived fuel or solid recovered fuel)"]
["Yearly average biogenic percentage of the waste by net calorific value (NCV)","x %",66.52]
["Description of how biogenic NCV percentage has been calculated or estimated","Data was used from 2018 waste composition analysis to determine fraction of biogenic/non-biogenic material in the waste. NCV for biogenic/non-biogenic fractions was not available for Eastcroft so the data generated for Lincon EfW was used to estimate the NCV of thje Eastcroft biogenic fraction",null,null,"Note 3: Where available, data from waste sampling should be used; otherwise, an estimated figure with justification can be used, or a figure assumed on the basis of a national average e.g. 2017 WRAP data for residual waste of 51.8% biogenic energy content - refer to embedded Environment Agency guidance note above or updated version for suitable descriptive text, quoting standards where relevant. "]
["Percentage of total carbon dioxide emissions arising from biogenic waste","x %"]
["Description of how percentage biogenic carbon dioxide emissions have been calculated","As above. CO2 generration is assumed to be the same for all combustible wastes once moisture content has been factored out.",null,null,"Note 4: Examples include direct measurement via C14 method or BIOMA software - refer to embedded Environment Agency guidance note above or updated version for suitable descriptive text, quoting standards where relevant. Otherwise, as an approximation (and in lieu of any more accurate metrics which may be developed in future), the measured or estimated biogenic fraction by net calorific value can be assumed to be the same as the biogenic CO2 fraction of the total CO2 emissions from the plant. "]
[]
["Comments:"]

{"sheet":"Residue Quality ","index":11,"n_rows":35,"n_cols":6,"rows_kept":35,"cut":false,"hidden":false,"merged":[[35,0,40,6],[32,3,32,4],[34,0,34,6],[27,0,28,1],[29,0,29,1],[30,0,30,1],[31,0,31,1],[32,0,32,1],[29,3,29,4],[30,3,30,4],[29,5,29,6],[30,5,30,6],[31,5,31,6],[32,5,32,6],[20,0,21,1],[20,2,21,6],[22,0,23,1],[22,2,23,6],[31,3,31,4],[27,2,28,2],[28,3,28,4],[28,5,28,6],[27,3,27,6],[26,0,26,6],[9,0,10,6],[14,0,15,1],[14,2,15,6],[5,0,6,6],[7,0,8,6],[16,0,17,1],[16,2,17,6],[18,0,19,1],[18,2,19,6],[12,0,12,6],[13,0,13,1],[13,2,13,6]]}
[{"$f":"+'Cover Page'!$B$29","v":"Annual Performance Report 2022"},null,null,null,{"$f":"+'Cover Page'!$B$33","v":"Eastcroft Energy from Waste Plant"}]
[]
["Residue Quality Monitoring Requirements"]
[]
["Summary of monitoring undertaken and compliance"]
["Monitoring of residues for permit compliance was undertaken with full compliance to the residue limit recorded. \nNo specific events were recorded during 2022."]
[]
["All 24 samples taken and analysed as per the ESA protocol were returned demonstrating that the Incinerator Bottom Ash should be classified as non-hazardous. "]
[]
[]
[]
[]
["Commentary on any specific events"]
["Date & Event",null,"Description"]
[]
[]
[]
[]
[]
[]
[]
[]
[]
[]
[]
[]
["Residue Quality Monitoring Results"]
["Parameter (unit) ",null,"Limit","Normal Operation "]
[null,null,null,"Bottom ash  ",null,"APC Residues"]
["Loss on Ignition (average %)",null,"<5%"]
["Total Organic Carbon (average %)",null,"<3%",1.34]
["No. of Assessments Undertaken",null,"---",24,null,4]
["No. of Hazardous Results",null,"---",0]
[]
["Comments :"]

{"sheet":"Air (periodic)","index":12,"n_rows":39,"n_cols":13,"rows_kept":39,"cut":false,"hidden":false,"merged":[[18,3,18,4],[27,3,27,4],[33,3,33,4],[19,3,19,4],[20,3,20,4],[21,3,21,4],[22,3,22,4],[23,3,23,4],[24,3,24,4],[31,3,31,4],[25,3,25,4],[26,3,26,4],[28,3,28,4],[13,3,13,4],[14,3,14,4],[15,3,15,4],[16,3,16,4],[17,3,17,4],[38,0,38,9],[19,0,19,1],[20,0,20,1],[21,0,21,1],[34,3,34,4],[35,3,35,4],[33,0,33,1],[34,0,34,1],[35,0,35,1],[36,0,36,1],[24,0,24,1],[32,3,32,4],[39,0,40,9],[25,0,25,1],[26,0,26,1],[22,0,22,1],[23,0,23,1],[37,0,37,1],[27,0,27,1],[28,0,28,1],[29,0,29,1],[30,0,30,1],[31,0,31,1],[32,0,32,1],[37,3,37,4],[29,3,29,4],[30,3,30,4],[36,3,36,4],[16,0,16,1],[17,0,17,1],[18,0,18,1],[13,0,13,1],[14,0,14,1],[15,0,15,1],[12,0,12,1],[11,3,11,4],[12,3,12,4],[9,0,10,1],[9,5,9,9],[9,3,10,4],[9,2,10,2],[5,12,8,15],[9,12,11,15],[8,0,8,9],[5,0,6,9],[11,0,11,1]]}
[{"$f":"+'Cover Page'!$B$29","v":"Annual Performance Report 2022"},null,null,null,{"$f":"+'Cover Page'!$B$33","v":"Eastcroft Energy from Waste Plant"}]
[]
["Emissions to Air (periodically monitored)"]
[]
["Summary of monitoring undertaken, standards used and compliance",null,null,null,null,null,null,null,null,null,null,null,"Notes:"]
[null,null,null,null,null,null,null,null,null,null,null,null,"Template may require adjustment for any bespoke monitoring requirements of permit. "]
[]
[]
["Results of emissions to air that are periodically monitored"]
["Substance",null,"Ref. Period","Emission Limit Value",null,"Average",null,null,null,null,null,null,"User to add additional tables as necessary, depending on whether quarterly or bi-annual reporting is required for the compliance year"]
[null,null,null,null,null,"A1","A2","A3","A4","A5"]
["Hydrogen fluoride",null,"1 hr","2 mg/m3",null,0.51500000000000001,0.32500000000000001]
["Cd and Th and their compounds",null,"6-8hrs","0.05 mg/m3",null,2E-3,9.5E-4]
["Hg and its compounds",null,"6-8hrs","0.05 mg/m3",null,6.0999999999999997E-4,6.0000000000000006E-4]
["Sb, As, Pb, Cr, Co, Cu, Mn, Ni, V and their compounds",null,"6-8hrs","0.5 mg/m3",null,9.5000000000000001E-2,8.3500000000000005E-2]
["Dioxins & Furans (I-TEQ)",null,"6-8hrs","0.1 ng/m3",null,9.5E-4,5.5000000000000003E-4]
["PCBs (WHO-TEQ Humans / Mammals)",null,"6-8hrs","None set ng/m3",null,7.7999999999999999E-5,5.5000000000000002E-5]
["PCBs (WHO-TEQ Fish)",null,"6-8hrs","None set ng/m3",null,7.7500000000000003E-6,1.0000000000000001E-5]
["PCBs (WHO-TEQ Birds)",null,"6-8hrs","None set ng/m3",null,3.3500000000000001E-4,7.5000000000000002E-4]
["Dioxins & Furans (WHO-TEQ Humans / Mammals)",null,"6-8hrs","None set ng/m3",null,4.0000000000000002E-4,1E-4]
["Dioxins & Furans (WHO-TEQ Fish)",null,"6-8hrs","None set ng/m3",null,9.5E-4,6.0000000000000006E-4]
["Dioxins & Furans (WHO-TEQ Birds)",null,"6-8hrs","None set ng/m3",null,2.7499999999999998E-3,1.65E-3]
["Anthanthrene",null,"6-8hrs","None set µg/m3",null,1.5E-3,1.4499999999999999E-3]
["Benzo(a)anthracene",null,"6-8hrs","None set µg/m3",null,0.02,1E-3]
["Benzo(a)pyrene",null,"6-8hrs","None set µg/m3",null,6.0000000000000001E-3,6.0000000000000001E-3]
["Benzo(b)fluoranthene",null,"6-8hrs","None set µg/m3",null,"<0.0014","<0.0014"]
["Benzo(b)naptho(2,1-d) thiophene",null,"6-8hrs","None set µg/m3",null,5.6000000000000001E-2,1.4499999999999999E-3]
["Benzo(c)phenanthrene",null,"6-8hrs","None set µg/m3",null,6.0000000000000001E-3,"<0.00145"]
["Benzo(ghi)perylene",null,"6-8hrs","None set µg/m3",null,4.4999999999999997E-3,6.4999999999999997E-3]
["Benzo(k)fluoranthene",null,"6-8hrs","None set µg/m3",null,3.2000000000000002E-3,2.2000000000000001E-3]
["Cholanthrene",null,"6-8hrs","None set µg/m3",null,1.5E-3,1.4499999999999999E-3]
["Chrysene",null,"6-8hrs","None set µg/m3",null,0.03,6.5000000000000006E-3]
["Cyclopenta(cd)pyrene",null,"6-8hrs","None set µg/m3",null,0.01,"<0.00145"]
["Dibenzo(ai)pyrene",null,"6-8hrs","None set µg/m3",null,"<0.0015",6.9999999999999999E-4]
["Dibenzo(ah)anthracene",null,"6-8hrs","None set µg/m3",null,1.5E-3,1.4499999999999999E-3]
["Fluoranthene",null,"6-8hrs","None set µg/m3",null,0.16500000000000001,3.5000000000000003E-2]
["Indeno(123-cd) pyrene",null,"6-8hrs","None set µg/m3",null,2.7000000000000001E-3,6.5000000000000006E-3]
["Naphthalene",null,"6-8hrs","None set µg/m3",null,7.0000000000000007E-2,0.09]
["Comments :"]

{"sheet":"Air (CEMS)","index":13,"n_rows":29,"n_cols":16,"rows_kept":29,"cut":false,"hidden":false,"merged":[[27,0,27,12],[29,0,30,12],[13,0,14,0],[5,0,6,12],[7,0,8,12],[10,0,10,12],[11,0,12,0],[11,2,12,2],[11,1,12,1],[11,3,11,4],[11,5,11,6],[11,7,11,8],[11,9,11,10],[11,11,11,12]]}
["Annual Performance Report 2022",null,null,null,null,null,null,null,"Eastcroft Energy from Waste Plant"]
[]
["Emissions to Air (continously monitored)"]
[null,null,null,null,null,null,null,null,null,null,null,null,null,null,null,"Notes:"]
["Summary of monitoring undertaken, standards used and compliance",null,null,null,null,null,null,null,null,null,null,null,null,null,null,"Template may require adjustment for any bespoke monitoring requirements of permit"]
[null,null,null,null,null,null,null,null,null,null,null,null,null,null,null,"Report to 2 decimal places, i.e. xx.xx%"]
[]
[]
[]
[]
["Results of emissions to air that are continuously monitored (maximum and average values for each line)"]
["Substance","Reference Period","Emission Limit Value","A1",null,"A2",null,"A3",null,"A4",null,"A5"]
[null,null,null,"Max.","Avg.","Max.","Avg.","Max.","Avg.","Max.","Avg.","Max.","Avg."]
["Oxides of nitrogen","Daily mean","200 mg/m3 ",199.5,164.75833333333335,191.8,163.34166666666667]
[null,"½ hourly mean","400 mg/m3 ",316.3,164.91666666666666,277.39999999999998,163.44166666666663]
["Particulates","Daily mean","10 mg/m3",1.5,0.33333333333333331,1.2,0.35833333333333334]
[null,"½ hourly mean","30 mg/m3 ",10,0.375,17.100000000000001,0.37500000000000006]
["Total Organic Carbon ","Daily mean","10 mg/m3 ",1.4,0.48333333333333339,8,0.60833333333333328]
[null,"½ hourly mean","20 mg/m3 ",27.9,0.52500000000000002,19.5,0.64999999999999991]
["Hydrogen chloride ","Daily mean","10 mg/m3 ",7.1,4.8583333333333334,12.6,5.6499999999999995]
[null,"½ hourly mean","60 mg/m3 ",49.2,4.9000000000000004,63.2,5.6916666666666664]
["Sulphur dioxide","Daily mean","50 mg/m3 ",22.3,14.550000000000002,30.5,15.083333333333334]
[null,"½ hourly mean","200 mg/m3 ",108.1,14.75,99.6,15.141666666666666]
["Carbon monoxide ","Daily mean","50 mg/m3 ",12.5,4.4833333333333334,18.3,5.3500000000000005]
[null,"½ hourly mean *","100 mg/m3 *"]
[null,"95%ile 10-min avg *","150 mg/m3 *",470,150,372.5,150]
[" Ammonia","Daily mean","No limit set",5.5,0.65833333333333333,2.2999999999999998,0.68333333333333324]
["* = delete or amend as appropriate"]
["Comments :"]

{"sheet":"HCl","index":14,"n_rows":79,"n_cols":17,"rows_kept":79,"cut":false,"hidden":false,"merged":[[12,16,15,18],[51,9,63,9],[66,9,78,9],[4,9,4,14],[4,1,4,3],[4,4,4,6],[48,0,51,6],[47,0,47,6],[6,9,18,9],[21,9,33,9],[36,9,48,9],[3,16,7,18],[9,16,11,18]]}
["Annual Performance Report 2022",null,null,null,"Eastcroft Energy from Waste Plant"]
[]
["Monitoring of Hydrogen Chloride emissions",null,null,"Whole Installation",null,null,"See  Notes in Cell Q3",null,null,"Monitoring of Hydrogen Chloride emissions",null,null,null,"Per Combustion Line",null,null,"Notes:"]
[null,null,null,null,null,null,null,null,null,null,null,null,null,null,null,null,"User to add logic to complete Whole installation, Table A5:G18. From the data in Per Combustion Line, Table J6:O79, subject to No. of lines installed"]
["mg/Nm3","1/2 Hourly Reference Periods",null,null,"Daily Reference Periods"]
[2022,"1/2 hourly HCl ELV","Monthly 1/2 hourly mean","Highest 1/2 hourly maximum","Daily HCl ELV","Monthly daily mean","Highest daily maximum",null,null,2022,"mg/Nm3","Monthly 1/2 hourly mean","Monthly 1/2 hourly maximum","Monthly daily mean","Monthly daily maximum"]
["Jan",60,9.6,59.699999999999996,10,9.5,11.100000000000001,null,null,"A1","Jan",4.5999999999999996,48.8,4.5,5.2]
["Feb",60,9.6999999999999993,20.6,10,9.6,11.3,null,null,null,"Feb",4.7,8.4,4.5999999999999996,5.5]
["Mar",60,9.1000000000000014,26.700000000000003,10,9,11,null,null,null,"Mar",4.4000000000000004,13.3,4.3,5.0999999999999996,null,"Whole Installation table A5:G18:"]
["Apr",60,10.5,23.5,10,10.5,11.600000000000001,null,null,null,"Apr",4.9000000000000004,14.3,4.9000000000000004,5.4,null,"Mean: for 1/2 hourly and daily periods calculate mean of values across all operational combustion lines for the month"]
["May",60,10.9,74.900000000000006,10,10.8,13,null,null,null,"May",5,11.7,5,5.5]
["Jun",60,11.2,72.099999999999994,10,11,13.5,null,null,null,"Jun",5.3,46,5.2,7.1]
["Jul",60,11.1,24.7,10,11.1,13.600000000000001,null,null,null,"Jul",4.8,11,4.8,5.9,null,"Maximum: for 1/2 hourly and daily periods use the highest value across all operational combustion lines for the month"]
["Aug",60,12.2,61.6,10,12.2,13.899999999999999,null,null,null,"Aug",5.6,49.2,5.6,6.6]
["Sep",60,11.6,33.9,10,11.4,12.600000000000001,null,null,null,"Sep",5.5,17.899999999999999,5.4,5.9]
["Oct",60,11.3,69.300000000000011,10,11.2,18.5,null,null,null,"Oct",4.9000000000000004,17.600000000000001,4.9000000000000004,5.9]
["Nov",60,10.7,54.4,10,10.7,13.3,null,null,null,"Nov",5,26.7,5,6.6]
["Dec",60,9.1999999999999993,17,10,9.1,11.4,null,null,null,"Dec",4.0999999999999996,8.9,4.0999999999999996,5.5]
[null,null,null,null,null,null,null,null,null,null,"Annual",4.9000000000000004,49.2,4.8583333333333334,7.1]
[]
[null,null,null,null,null,null,null,null,null,2022,"mg/Nm3","Monthly 1/2 hourly mean","Monthly 1/2 hourly maximum","Monthly daily mean","Monthly daily maximum"]
[null,null,null,null,null,null,null,null,null,"A2","Jan",5,10.9,5,5.9]
[null,null,null,null,null,null,null,null,null,null,"Feb",5,12.2,5,5.8]
[null,null,null,null,null,null,null,null,null,null,"Mar",4.7,13.4,4.7,5.9]
[null,null,null,null,null,null,null,null,null,null,"Apr",5.6,9.1999999999999993,5.6,6.2]
[null,null,null,null,null,null,null,null,null,null,"May",5.9,63.2,5.8,7.5]
[null,null,null,null,null,null,null,null,null,null,"Jun",5.9,26.1,5.8,6.4]
[null,null,null,null,null,null,null,null,null,null,"Jul",6.3,13.7,6.3,7.7]
[null,null,null,null,null,null,null,null,null,null,"Aug",6.6,12.4,6.6,7.3]
[null,null,null,null,null,null,null,null,null,null,"Sep",6.1,16,6,6.7]
[null,null,null,null,null,null,null,null,null,null,"Oct",6.4,51.7,6.3,12.6]
[null,null,null,null,null,null,null,null,null,null,"Nov",5.7,27.7,5.7,6.7]
[null,null,null,null,null,null,null,null,null,null,"Dec",5.0999999999999996,8.1,5,5.9]
[null,null,null,null,null,null,null,null,null,null,"Annual",5.6916666666666664,63.2,5.6499999999999995,12.6]
[]
[null,null,null,null,null,null,null,null,null,{"$f":"+A6","v":2022},"mg/Nm3","Monthly 1/2 hourly mean","Monthly 1/2 hourly maximum","Monthly daily mean","Monthly daily maximum"]
[null,null,null,null,null,null,null,null,null,"A3","Jan"]
[null,null,null,null,null,null,null,null,null,null,"Feb"]
[null,null,null,null,null,null,null,null,null,null,"Mar"]
[null,null,null,null,null,null,null,null,null,null,"Apr"]
[null,null,null,null,null,null,null,null,null,null,"May"]
[null,null,null,null,null,null,null,null,null,null,"Jun"]
[null,null,null,null,null,null,null,null,null,null,"Jul"]
[null,null,null,null,null,null,null,null,null,null,"Aug"]
[null,null,null,null,null,null,null,null,null,null,"Sep"]
[null,null,null,null,null,null,null,null,null,null,"Oct"]
[null,null,null,null,null,null,null,null,null,null,"Nov"]
["Comments :",null,null,null,null,null,null,null,null,null,"Dec"]
[null,null,null,null,null,null,null,null,null,null,"Annual",{"$f":"AVERAGE(L37:L48)","v":{"$error":"#DIV/0!"}},{"$f":"MAX(M37:M48)","v":0},{"$f":"AVERAGE(N37:N48)","v":{"$error":"#DIV/0!"}},{"$f":"MAX(O37:O48)","v":0}]
[]
[null,null,null,null,null,null,null,null,null,{"$f":"+A6","v":2022},"mg/Nm3","Monthly 1/2 hourly mean","Monthly 1/2 hourly maximum","Monthly daily mean","Monthly daily maximum"]
[null,null,null,null,null,null,null,null,null,"A4","Jan"]
[null,null,null,null,null,null,null,null,null,null,"Feb"]
[null,null,null,null,null,null,null,null,null,null,"Mar"]
[null,null,null,null,null,null,null,null,null,null,"Apr"]
[null,null,null,null,null,null,null,null,null,null,"May"]
[null,null,null,null,null,null,null,null,null,null,"Jun"]
[null,null,null,null,null,null,null,null,null,null,"Jul"]
[null,null,null,null,null,null,null,null,null,null,"Aug"]
[null,null,null,null,null,null,null,null,null,null,"Sep"]
[null,null,null,null,null,null,null,null,null,null,"Oct"]
[null,null,null,null,null,null,null,null,null,null,"Nov"]
[null,null,null,null,null,null,null,null,null,null,"Dec"]
[null,null,null,null,null,null,null,null,null,null,"Annual",{"$f":"AVERAGE(L52:L63)","v":{"$error":"#DIV/0!"}},{"$f":"MAX(M52:M63)","v":0},{"$f":"AVERAGE(N52:N63)","v":{"$error":"#DIV/0!"}},{"$f":"MAX(O52:O63)","v":0}]
[]
[null,null,null,null,null,null,null,null,null,{"$f":"+A6","v":2022},"mg/Nm3","Monthly 1/2 hourly mean","Monthly 1/2 hourly maximum","Monthly daily mean","Monthly daily maximum"]
[null,null,null,null,null,null,null,null,null,"A5","Jan"]
[null,null,null,null,null,null,null,null,null,null,"Feb"]
[null,null,null,null,null,null,null,null,null,null,"Mar"]
[null,null,null,null,null,null,null,null,null,null,"Apr"]
[null,null,null,null,null,null,null,null,null,null,"May"]
[null,null,null,null,null,null,null,null,null,null,"Jun"]
[null,null,null,null,null,null,null,null,null,null,"Jul"]
[null,null,null,null,null,null,null,null,null,null,"Aug"]
[null,null,null,null,null,null,null,null,null,null,"Sep"]
[null,null,null,null,null,null,null,null,null,null,"Oct"]
[null,null,null,null,null,null,null,null,null,null,"Nov"]
[null,null,null,null,null,null,null,null,null,null,"Dec"]
[null,null,null,null,null,null,null,null,null,null,"Annual",{"$f":"AVERAGE(L67:L78)","v":{"$error":"#DIV/0!"}},{"$f":"MAX(M67:M78)","v":0},{"$f":"AVERAGE(N67:N78)","v":{"$error":"#DIV/0!"}},{"$f":"MAX(O67:O78)","v":0}]

{"sheet":"SO2","index":15,"n_rows":79,"n_cols":17,"rows_kept":79,"cut":false,"hidden":false,"merged":[[3,16,7,18],[9,16,11,18],[12,16,15,18],[66,9,78,9],[4,1,4,3],[4,4,4,6],[4,9,4,14],[6,9,18,9],[21,9,33,9],[36,9,48,9],[47,0,47,6],[48,0,51,6],[51,9,63,9]]}
["Annual Performance Report 2022",null,null,null,"Eastcroft Energy from Waste Plant"]
[]
["Monitoring of Sulphur dioxide emissions",null,null,"Whole Installation",null,null,"See  Notes in Cell Q3",null,null,"Monitoring of Sulphur dioxide emissions",null,null,null,"Per Combustion Line",null,null,"Notes:"]
[null,null,null,null,null,null,null,null,null,null,null,null,null,null,null,null,"User to add logic to complete Whole installation, Table A5:G18. From the data in Per Combustion Line, Table J6:O79, subject to No. of lines installed"]
["mg/Nm3","1/2 Hourly Reference Periods",null,null,"Daily Reference Periods"]
[2022,"1/2 hourly SO2 ELV","Monthly 1/2 hourly mean","Highest 1/2 hourly maximum","Daily SO2 ELV","Monthly daily mean","Highest daily maximum",null,null,2022,"mg/Nm3","Monthly 1/2 hourly mean","Monthly 1/2 hourly maximum","Monthly daily mean","Monthly daily maximum"]
["Jan",200,29.8,97.4,50,29.7,40.700000000000003,null,null,"A1","Jan",13.3,45.8,13.2,20.2]
["Feb",200,34.599999999999994,121.8,50,34.4,43.5,null,null,null,"Feb",14.7,74,14.6,20]
["Mar",200,33.9,185.7,50,33.799999999999997,49.4,null,null,null,"Mar",14.7,108.1,14.7,21.7,null,"Whole Installation table A5:G18:"]
["Apr",200,26.6,98.2,50,26.4,34.700000000000003,null,null,null,"Apr",12.9,38.5,12.8,14.6,null,"Mean: for 1/2 hourly and daily periods calculate mean of values across all operational combustion lines for the month"]
["May",200,29.5,97,50,29.5,37.400000000000006,null,null,null,"May",14.7,46.5,14.7,19.100000000000001]
["Jun",200,30.6,143.80000000000001,50,30.400000000000002,40.1,null,null,null,"Jun",14.4,77,14.3,17.8]
["Jul",200,36.799999999999997,151.30000000000001,50,35,68.7,null,null,null,"Jul",17.899999999999999,104.5,16.100000000000001,38.200000000000003,null,"Maximum: for 1/2 hourly and daily periods use the highest value across all operational combustion lines for the month"]
["Aug",200,23.1,146.4,50,23.2,37.900000000000006,null,null,null,"Aug",10.5,102.8,10.6,16.600000000000001]
["Sep",200,19.2,75.099999999999994,50,19.2,27.8,null,null,null,"Sep",10.5,52.6,10.5,16.100000000000001]
["Oct",200,27.8,154.1,50,27.4,60.7,null,null,null,"Oct",15.5,54.5,15.4,31]
["Nov",200,28.6,106.6,50,28.5,40.099999999999994,null,null,null,"Nov",15.5,46.8,15.4,22.4]
["Dec",200,38.200000000000003,108.9,50,38.1,54,null,null,null,"Dec",22.4,63.1,22.3,29.5]
[null,null,null,null,null,null,null,null,null,null,"Annual",14.75,108.1,14.550000000000002,22.3]
[]
[null,null,null,null,null,null,null,null,null,2022,"mg/Nm3","Monthly 1/2 hourly mean","Monthly 1/2 hourly maximum","Monthly daily mean","Monthly daily maximum"]
[null,null,null,null,null,null,null,null,null,"A2","Jan",16.5,51.6,16.5,20.5]
[null,null,null,null,null,null,null,null,null,null,"Feb",19.899999999999999,47.8,19.8,23.5]
[null,null,null,null,null,null,null,null,null,null,"Mar",19.2,77.599999999999994,19.100000000000001,27.7]
[null,null,null,null,null,null,null,null,null,null,"Apr",13.7,59.7,13.6,20.100000000000001]
[null,null,null,null,null,null,null,null,null,null,"May",14.8,50.5,14.8,18.3]
[null,null,null,null,null,null,null,null,null,null,"Jun",16.2,66.8,16.100000000000001,22.3]
[null,null,null,null,null,null,null,null,null,null,"Jul",18.899999999999999,46.8,18.899999999999999,30.5]
[null,null,null,null,null,null,null,null,null,null,"Aug",12.6,43.6,12.6,21.3]
[null,null,null,null,null,null,null,null,null,null,"Sep",8.6999999999999993,22.5,8.6999999999999993,11.7]
[null,null,null,null,null,null,null,null,null,null,"Oct",12.3,99.6,12,29.7]
[null,null,null,null,null,null,null,null,null,null,"Nov",13.1,59.8,13.1,17.7]
[null,null,null,null,null,null,null,null,null,null,"Dec",15.8,45.8,15.8,24.5]
[null,null,null,null,null,null,null,null,null,null,"Annual",15.141666666666666,99.6,15.083333333333334,30.5]
[]
[null,null,null,null,null,null,null,null,null,{"$f":"+A6","v":2022},"mg/Nm3","Monthly 1/2 hourly mean","Monthly 1/2 hourly maximum","Monthly daily mean","Monthly daily maximum"]
[null,null,null,null,null,null,null,null,null,"A3","Jan"]
[null,null,null,null,null,null,null,null,null,null,"Feb"]
[null,null,null,null,null,null,null,null,null,null,"Mar"]
[null,null,null,null,null,null,null,null,null,null,"Apr"]
[null,null,null,null,null,null,null,null,null,null,"May"]
[null,null,null,null,null,null,null,null,null,null,"Jun"]
[null,null,null,null,null,null,null,null,null,null,"Jul"]
[null,null,null,null,null,null,null,null,null,null,"Aug"]
[null,null,null,null,null,null,null,null,null,null,"Sep"]
[null,null,null,null,null,null,null,null,null,null,"Oct"]
[null,null,null,null,null,null,null,null,null,null,"Nov"]
["Comments :",null,null,null,null,null,null,null,null,null,"Dec"]
[null,null,null,null,null,null,null,null,null,null,"Annual",{"$f":"AVERAGE(L37:L48)","v":{"$error":"#DIV/0!"}},{"$f":"MAX(M37:M48)","v":0},{"$f":"AVERAGE(N37:N48)","v":{"$error":"#DIV/0!"}},{"$f":"MAX(O37:O48)","v":0}]
[]
[null,null,null,null,null,null,null,null,null,{"$f":"+A6","v":2022},"mg/Nm3","Monthly 1/2 hourly mean","Monthly 1/2 hourly maximum","Monthly daily mean","Monthly daily maximum"]
[null,null,null,null,null,null,null,null,null,"A4","Jan"]
[null,null,null,null,null,null,null,null,null,null,"Feb"]
[null,null,null,null,null,null,null,null,null,null,"Mar"]
[null,null,null,null,null,null,null,null,null,null,"Apr"]
[null,null,null,null,null,null,null,null,null,null,"May"]
[null,null,null,null,null,null,null,null,null,null,"Jun"]
[null,null,null,null,null,null,null,null,null,null,"Jul"]
[null,null,null,null,null,null,null,null,null,null,"Aug"]
[null,null,null,null,null,null,null,null,null,null,"Sep"]
[null,null,null,null,null,null,null,null,null,null,"Oct"]
[null,null,null,null,null,null,null,null,null,null,"Nov"]
[null,null,null,null,null,null,null,null,null,null,"Dec"]
[null,null,null,null,null,null,null,null,null,null,"Annual",{"$f":"AVERAGE(L52:L63)","v":{"$error":"#DIV/0!"}},{"$f":"MAX(M52:M63)","v":0},{"$f":"AVERAGE(N52:N63)","v":{"$error":"#DIV/0!"}},{"$f":"MAX(O52:O63)","v":0}]
[]
[null,null,null,null,null,null,null,null,null,{"$f":"+A6","v":2022},"mg/Nm3","Monthly 1/2 hourly mean","Monthly 1/2 hourly maximum","Monthly daily mean","Monthly daily maximum"]
[null,null,null,null,null,null,null,null,null,"A5","Jan"]
[null,null,null,null,null,null,null,null,null,null,"Feb"]
[null,null,null,null,null,null,null,null,null,null,"Mar"]
[null,null,null,null,null,null,null,null,null,null,"Apr"]
[null,null,null,null,null,null,null,null,null,null,"May"]
[null,null,null,null,null,null,null,null,null,null,"Jun"]
[null,null,null,null,null,null,null,null,null,null,"Jul"]
[null,null,null,null,null,null,null,null,null,null,"Aug"]
[null,null,null,null,null,null,null,null,null,null,"Sep"]
[null,null,null,null,null,null,null,null,null,null,"Oct"]
[null,null,null,null,null,null,null,null,null,null,"Nov"]
[null,null,null,null,null,null,null,null,null,null,"Dec"]
[null,null,null,null,null,null,null,null,null,null,"Annual",{"$f":"AVERAGE(L67:L78)","v":{"$error":"#DIV/0!"}},{"$f":"MAX(M67:M78)","v":0},{"$f":"AVERAGE(N67:N78)","v":{"$error":"#DIV/0!"}},{"$f":"MAX(O67:O78)","v":0}]

{"sheet":"NOx","index":16,"n_rows":79,"n_cols":17,"rows_kept":79,"cut":false,"hidden":false,"merged":[[3,16,7,18],[9,16,11,18],[12,16,15,18],[66,9,78,9],[4,1,4,3],[4,4,4,6],[4,9,4,14],[6,9,18,9],[21,9,33,9],[36,9,48,9],[47,0,47,6],[48,0,51,6],[51,9,63,9]]}
["Annual Performance Report 2022",null,null,null,"Eastcroft Energy from Waste Plant"]
[]
["Monitoring of Oxides of Nitrogen emissions",null,null,"Whole Installation",null,null,"See  Notes in Cell Q3",null,null,"Monitoring of Oxides of Nitrogen emissions",null,null,null,"Per Combustion Line",null,null,"Notes:"]
[null,null,null,null,null,null,null,null,null,null,null,null,null,null,null,null,"User to add logic to complete Whole installation, Table A5:G18. From the data in Per Combustion Line, Table J6:O79, subject to No. of lines installed"]
["mg/Nm3","1/2 Hourly Reference Periods",null,null,"Daily Reference Periods"]
[2022,"1/2 hourly NOx ELV","Monthly 1/2 hourly mean","Highest 1/2 hourly maximum","Daily NOx ELV","Monthly daily mean","Highest daily maximum",null,null,2022,"mg/Nm3","Monthly 1/2 hourly mean","Monthly 1/2 hourly maximum","Monthly daily mean","Monthly daily maximum"]
["Jan",400,297.3,377,200,297.3,319.39999999999998,null,null,"A1","Jan",152.9,193.7,152.9,166.9]
["Feb",400,301,404.8,200,301.10000000000002,324.70000000000005,null,null,null,"Feb",153.4,218.3,153.4,163.9]
["Mar",400,293.8,384.6,200,293.8,316.3,null,null,null,"Mar",150,201.6,150,164,null,"Whole Installation table A5:G18:"]
["Apr",400,327.79999999999995,529.6,200,326.3,375,null,null,null,"Apr",163.1,280.3,162.4,183.2,null,"Mean: for 1/2 hourly and daily periods calculate mean of values across all operational combustion lines for the month"]
["May",400,355.9,473.3,200,355.79999999999995,383.3,null,null,null,"May",178.6,239,178.6,195.4]
["Jun",400,354.6,481.2,200,354.6,374.9,null,null,null,"Jun",172.8,236.6,172.7,183.6]
["Jul",400,333.70000000000005,549,200,332.1,364.5,null,null,null,"Jul",165.3,271.60000000000002,164.3,178.6,null,"Maximum: for 1/2 hourly and daily periods use the highest value across all operational combustion lines for the month"]
["Aug",400,308.39999999999998,434.4,200,308.5,345.3,null,null,null,"Aug",150.80000000000001,217.9,150.9,170.9]
["Sep",400,336.5,455.9,200,336.5,360.7,null,null,null,"Sep",170.5,236.3,170.5,186.5]
["Oct",400,344.8,518.79999999999995,200,344.8,387.7,null,null,null,"Oct",171,278.2,170.9,199.5]
["Nov",400,350.3,554.6,200,350.3,383,null,null,null,"Nov",183,316.3,183,194.5]
["Dec",400,336.2,504.3,200,336.1,359.7,null,null,null,"Dec",167.6,252.4,167.5,183.1]
[null,null,null,null,null,null,null,null,null,null,"Annual",164.91666666666666,316.3,164.75833333333335,199.5]
[]
[null,null,null,null,null,null,null,null,null,2022,"mg/Nm3","Monthly 1/2 hourly mean","Monthly 1/2 hourly maximum","Monthly daily mean","Monthly daily maximum"]
[null,null,null,null,null,null,null,null,null,"A2","Jan",144.4,183.3,144.4,152.5]
[null,null,null,null,null,null,null,null,null,null,"Feb",147.6,186.5,147.69999999999999,160.80000000000001]
[null,null,null,null,null,null,null,null,null,null,"Mar",143.80000000000001,183,143.80000000000001,152.30000000000001]
[null,null,null,null,null,null,null,null,null,null,"Apr",164.7,249.3,163.9,191.8]
[null,null,null,null,null,null,null,null,null,null,"May",177.3,234.3,177.2,187.9]
[null,null,null,null,null,null,null,null,null,null,"Jun",181.8,244.6,181.9,191.3]
[null,null,null,null,null,null,null,null,null,null,"Jul",168.4,277.39999999999998,167.8,185.9]
[null,null,null,null,null,null,null,null,null,null,"Aug",157.6,216.5,157.6,174.4]
[null,null,null,null,null,null,null,null,null,null,"Sep",166,219.6,166,174.2]
[null,null,null,null,null,null,null,null,null,null,"Oct",173.8,240.6,173.9,188.2]
[null,null,null,null,null,null,null,null,null,null,"Nov",167.3,238.3,167.3,188.5]
[null,null,null,null,null,null,null,null,null,null,"Dec",168.6,251.9,168.6,176.6]
[null,null,null,null,null,null,null,null,null,null,"Annual",163.44166666666663,277.39999999999998,163.34166666666667,191.8]
[]
[null,null,null,null,null,null,null,null,null,{"$f":"+A6","v":2022},"mg/Nm3","Monthly 1/2 hourly mean","Monthly 1/2 hourly maximum","Monthly daily mean","Monthly daily maximum"]
[null,null,null,null,null,null,null,null,null,"A3","Jan"]
[null,null,null,null,null,null,null,null,null,null,"Feb"]
[null,null,null,null,null,null,null,null,null,null,"Mar"]
[null,null,null,null,null,null,null,null,null,null,"Apr"]
[null,null,null,null,null,null,null,null,null,null,"May"]
[null,null,null,null,null,null,null,null,null,null,"Jun"]
[null,null,null,null,null,null,null,null,null,null,"Jul"]
[null,null,null,null,null,null,null,null,null,null,"Aug"]
[null,null,null,null,null,null,null,null,null,null,"Sep"]
[null,null,null,null,null,null,null,null,null,null,"Oct"]
[null,null,null,null,null,null,null,null,null,null,"Nov"]
["Comments :",null,null,null,null,null,null,null,null,null,"Dec"]
[null,null,null,null,null,null,null,null,null,null,"Annual",{"$f":"AVERAGE(L37:L48)","v":{"$error":"#DIV/0!"}},{"$f":"MAX(M37:M48)","v":0},{"$f":"AVERAGE(N37:N48)","v":{"$error":"#DIV/0!"}},{"$f":"MAX(O37:O48)","v":0}]
[]
[null,null,null,null,null,null,null,null,null,{"$f":"+A6","v":2022},"mg/Nm3","Monthly 1/2 hourly mean","Monthly 1/2 hourly maximum","Monthly daily mean","Monthly daily maximum"]
[null,null,null,null,null,null,null,null,null,"A4","Jan"]
[null,null,null,null,null,null,null,null,null,null,"Feb"]
[null,null,null,null,null,null,null,null,null,null,"Mar"]
[null,null,null,null,null,null,null,null,null,null,"Apr"]
[null,null,null,null,null,null,null,null,null,null,"May"]
[null,null,null,null,null,null,null,null,null,null,"Jun"]
[null,null,null,null,null,null,null,null,null,null,"Jul"]
[null,null,null,null,null,null,null,null,null,null,"Aug"]
[null,null,null,null,null,null,null,null,null,null,"Sep"]
[null,null,null,null,null,null,null,null,null,null,"Oct"]
[null,null,null,null,null,null,null,null,null,null,"Nov"]
[null,null,null,null,null,null,null,null,null,null,"Dec"]
[null,null,null,null,null,null,null,null,null,null,"Annual",{"$f":"AVERAGE(L52:L63)","v":{"$error":"#DIV/0!"}},{"$f":"MAX(M52:M63)","v":0},{"$f":"AVERAGE(N52:N63)","v":{"$error":"#DIV/0!"}},{"$f":"MAX(O52:O63)","v":0}]
[]
[null,null,null,null,null,null,null,null,null,{"$f":"+A6","v":2022},"mg/Nm3","Monthly 1/2 hourly mean","Monthly 1/2 hourly maximum","Monthly daily mean","Monthly daily maximum"]
[null,null,null,null,null,null,null,null,null,"A5","Jan"]
[null,null,null,null,null,null,null,null,null,null,"Feb"]
[null,null,null,null,null,null,null,null,null,null,"Mar"]
[null,null,null,null,null,null,null,null,null,null,"Apr"]
[null,null,null,null,null,null,null,null,null,null,"May"]
[null,null,null,null,null,null,null,null,null,null,"Jun"]
[null,null,null,null,null,null,null,null,null,null,"Jul"]
[null,null,null,null,null,null,null,null,null,null,"Aug"]
[null,null,null,null,null,null,null,null,null,null,"Sep"]
[null,null,null,null,null,null,null,null,null,null,"Oct"]
[null,null,null,null,null,null,null,null,null,null,"Nov"]
[null,null,null,null,null,null,null,null,null,null,"Dec"]
[null,null,null,null,null,null,null,null,null,null,"Annual",{"$f":"AVERAGE(L67:L78)","v":{"$error":"#DIV/0!"}},{"$f":"MAX(M67:M78)","v":0},{"$f":"AVERAGE(N67:N78)","v":{"$error":"#DIV/0!"}},{"$f":"MAX(O67:O78)","v":0}]

{"sheet":"TOC","index":17,"n_rows":79,"n_cols":17,"rows_kept":79,"cut":false,"hidden":false,"merged":[[3,16,7,18],[9,16,11,18],[12,16,15,18],[66,9,78,9],[4,1,4,3],[4,4,4,6],[4,9,4,14],[6,9,18,9],[21,9,33,9],[36,9,48,9],[47,0,47,6],[48,0,51,6],[51,9,63,9]]}
["Annual Performance Report 2022",null,null,null,"Eastcroft Energy from Waste Plant"]
[]
["Monitoring of Total organic carbon emissions",null,null,"Whole Installation",null,null,"See  Notes in Cell Q3",null,null,"Monitoring of Total organic carbon emissions",null,null,null,"Per Combustion Line",null,null,"Notes:"]
[null,null,null,null,null,null,null,null,null,null,null,null,null,null,null,null,"User to add logic to complete Whole installation, Table A5:G18. From the data in Per Combustion Line, Table J6:O79, subject to No. of lines installed"]
["mg/Nm3","1/2 Hourly Reference Periods",null,null,"Daily Reference Periods"]
[2022,"1/2 hourly TOC ELV","Monthly 1/2 hourly mean","Highest 1/2 hourly maximum","Daily TOC ELV","Monthly daily mean","Highest daily maximum",null,null,2022,"mg/Nm3","Monthly 1/2 hourly mean","Monthly 1/2 hourly maximum","Monthly daily mean","Monthly daily maximum"]
["Jan",20,1,13.7,10,0.8,1.2,null,null,"A1","Jan",0.5,4,0.4,0.5]
["Feb",20,1,14,10,0.9,1.2999999999999998,null,null,null,"Feb",0.5,2.8,0.5,0.6]
["Mar",20,1,18.600000000000001,10,0.9,1.4,null,null,null,"Mar",0.5,6.3,0.5,0.7,null,"Whole Installation table A5:G18:"]
["Apr",20,1.1000000000000001,34.700000000000003,10,1,1.2999999999999998,null,null,null,"Apr",0.5,16.600000000000001,0.5,0.7,null,"Mean: for 1/2 hourly and daily periods calculate mean of values across all operational combustion lines for the month"]
["May",20,1,26.200000000000003,10,1,1.4,null,null,null,"May",0.5,11.9,0.5,0.7]
["Jun",20,1,20,10,1,1.4,null,null,null,"Jun",0.5,12.4,0.5,0.8]
["Jul",20,1.5,23.2,10,1.2999999999999998,2.7,null,null,null,"Jul",0.7,14.6,0.6,1.4,null,"Maximum: for 1/2 hourly and daily periods use the highest value across all operational combustion lines for the month"]
["Aug",20,1.1000000000000001,23.9,10,1.1000000000000001,1.7000000000000002,null,null,null,"Aug",0.5,9.6999999999999993,0.5,0.8]
["Sep",20,1.2,24.1,10,1.1000000000000001,1.6,null,null,null,"Sep",0.6,14.2,0.5,0.8]
["Oct",20,1.6,33.5,10,1.5,9.3000000000000007,null,null,null,"Oct",0.5,14,0.4,1.3]
["Nov",20,1.3,25.700000000000003,10,1.2000000000000002,1.9000000000000001,null,null,null,"Nov",0.5,9.1,0.4,0.8]
["Dec",20,1.3,40.4,10,1.3,2.5,null,null,null,"Dec",0.5,27.9,0.5,1.2]
[null,null,null,null,null,null,null,null,null,null,"Annual",0.52500000000000002,27.9,0.48333333333333339,1.4]
[]
[null,null,null,null,null,null,null,null,null,2022,"mg/Nm3","Monthly 1/2 hourly mean","Monthly 1/2 hourly maximum","Monthly daily mean","Monthly daily maximum"]
[null,null,null,null,null,null,null,null,null,"A2","Jan",0.5,9.6999999999999993,0.4,0.7]
[null,null,null,null,null,null,null,null,null,null,"Feb",0.5,11.2,0.4,0.7]
[null,null,null,null,null,null,null,null,null,null,"Mar",0.5,12.3,0.4,0.7]
[null,null,null,null,null,null,null,null,null,null,"Apr",0.6,18.100000000000001,0.5,0.6]
[null,null,null,null,null,null,null,null,null,null,"May",0.5,14.3,0.5,0.7]
[null,null,null,null,null,null,null,null,null,null,"Jun",0.5,7.6,0.5,0.6]
[null,null,null,null,null,null,null,null,null,null,"Jul",0.8,8.6,0.7,1.3]
[null,null,null,null,null,null,null,null,null,null,"Aug",0.6,14.2,0.6,0.9]
[null,null,null,null,null,null,null,null,null,null,"Sep",0.6,9.9,0.6,0.8]
[null,null,null,null,null,null,null,null,null,null,"Oct",1.1000000000000001,19.5,1.1000000000000001,8]
[null,null,null,null,null,null,null,null,null,null,"Nov",0.8,16.600000000000001,0.8,1.1000000000000001]
[null,null,null,null,null,null,null,null,null,null,"Dec",0.8,12.5,0.8,1.3]
[null,null,null,null,null,null,null,null,null,null,"Annual",0.64999999999999991,19.5,0.60833333333333328,8]
[]
[null,null,null,null,null,null,null,null,null,{"$f":"+A6","v":2022},"mg/Nm3","Monthly 1/2 hourly mean","Monthly 1/2 hourly maximum","Monthly daily mean","Monthly daily maximum"]
[null,null,null,null,null,null,null,null,null,"A3","Jan"]
[null,null,null,null,null,null,null,null,null,null,"Feb"]
[null,null,null,null,null,null,null,null,null,null,"Mar"]
[null,null,null,null,null,null,null,null,null,null,"Apr"]
[null,null,null,null,null,null,null,null,null,null,"May"]
[null,null,null,null,null,null,null,null,null,null,"Jun"]
[null,null,null,null,null,null,null,null,null,null,"Jul"]
[null,null,null,null,null,null,null,null,null,null,"Aug"]
[null,null,null,null,null,null,null,null,null,null,"Sep"]
[null,null,null,null,null,null,null,null,null,null,"Oct"]
[null,null,null,null,null,null,null,null,null,null,"Nov"]
["Comments :",null,null,null,null,null,null,null,null,null,"Dec"]
[null,null,null,null,null,null,null,null,null,null,"Annual",{"$f":"AVERAGE(L37:L48)","v":{"$error":"#DIV/0!"}},{"$f":"MAX(M37:M48)","v":0},{"$f":"AVERAGE(N37:N48)","v":{"$error":"#DIV/0!"}},{"$f":"MAX(O37:O48)","v":0}]
[]
[null,null,null,null,null,null,null,null,null,{"$f":"+A6","v":2022},"mg/Nm3","Monthly 1/2 hourly mean","Monthly 1/2 hourly maximum","Monthly daily mean","Monthly daily maximum"]
[null,null,null,null,null,null,null,null,null,"A4","Jan"]
[null,null,null,null,null,null,null,null,null,null,"Feb"]
[null,null,null,null,null,null,null,null,null,null,"Mar"]
[null,null,null,null,null,null,null,null,null,null,"Apr"]
[null,null,null,null,null,null,null,null,null,null,"May"]
[null,null,null,null,null,null,null,null,null,null,"Jun"]
[null,null,null,null,null,null,null,null,null,null,"Jul"]
[null,null,null,null,null,null,null,null,null,null,"Aug"]
[null,null,null,null,null,null,null,null,null,null,"Sep"]
[null,null,null,null,null,null,null,null,null,null,"Oct"]
[null,null,null,null,null,null,null,null,null,null,"Nov"]
[null,null,null,null,null,null,null,null,null,null,"Dec"]
[null,null,null,null,null,null,null,null,null,null,"Annual",{"$f":"AVERAGE(L52:L63)","v":{"$error":"#DIV/0!"}},{"$f":"MAX(M52:M63)","v":0},{"$f":"AVERAGE(N52:N63)","v":{"$error":"#DIV/0!"}},{"$f":"MAX(O52:O63)","v":0}]
[]
[null,null,null,null,null,null,null,null,null,{"$f":"+A6","v":2022},"mg/Nm3","Monthly 1/2 hourly mean","Monthly 1/2 hourly maximum","Monthly daily mean","Monthly daily maximum"]
[null,null,null,null,null,null,null,null,null,"A5","Jan"]
[null,null,null,null,null,null,null,null,null,null,"Feb"]
[null,null,null,null,null,null,null,null,null,null,"Mar"]
[null,null,null,null,null,null,null,null,null,null,"Apr"]
[null,null,null,null,null,null,null,null,null,null,"May"]
[null,null,null,null,null,null,null,null,null,null,"Jun"]
[null,null,null,null,null,null,null,null,null,null,"Jul"]
[null,null,null,null,null,null,null,null,null,null,"Aug"]
[null,null,null,null,null,null,null,null,null,null,"Sep"]
[null,null,null,null,null,null,null,null,null,null,"Oct"]
[null,null,null,null,null,null,null,null,null,null,"Nov"]
[null,null,null,null,null,null,null,null,null,null,"Dec"]
[null,null,null,null,null,null,null,null,null,null,"Annual",{"$f":"AVERAGE(L67:L78)","v":{"$error":"#DIV/0!"}},{"$f":"MAX(M67:M78)","v":0},{"$f":"AVERAGE(N67:N78)","v":{"$error":"#DIV/0!"}},{"$f":"MAX(O67:O78)","v":0}]

{"sheet":"Particulates","index":18,"n_rows":79,"n_cols":17,"rows_kept":79,"cut":false,"hidden":false,"merged":[[3,16,7,18],[9,16,11,18],[12,16,15,18],[66,9,78,9],[4,1,4,3],[4,4,4,6],[4,9,4,14],[6,9,18,9],[21,9,33,9],[36,9,48,9],[47,0,47,6],[48,0,51,6],[51,9,63,9]]}
["Annual Performance Report 2022",null,null,null,"Eastcroft Energy from Waste Plant"]
[]
["Monitoring of Particulate matter emissions",null,null,"Whole Installation",null,null,"See  Notes in Cell Q3",null,null,"Monitoring of Particulate matter emissions",null,null,null,"Per Combustion Line",null,null,"Notes:"]
[null,null,null,null,null,null,null,null,null,null,null,null,null,null,null,null,"User to add logic to complete Whole installation, Table A5:G18. From the data in Per Combustion Line, Table J6:O79, subject to No. of lines installed"]
["mg/Nm3","1/2 Hourly Reference Periods",null,null,"Daily Reference Periods"]
[2022,"1/2 hourly PM ELV","Monthly 1/2 hourly mean","Highest 1/2 hourly maximum","Daily PM ELV","Monthly daily mean","Highest daily maximum",null,null,2022,"mg/Nm3","Monthly 1/2 hourly mean","Monthly 1/2 hourly maximum","Monthly daily mean","Monthly daily maximum"]
["Jan",30,0.9,8,10,0.9,1.2,null,null,"A1","Jan",0.5,4.4000000000000004,0.5,0.7]
["Feb",30,1,6.2,10,0.9,1.1000000000000001,null,null,null,"Feb",0.6,1.3,0.5,0.6]
["Mar",30,0.9,9.3000000000000007,10,0.9,1.2,null,null,null,"Mar",0.5,4.3,0.5,0.6,null,"Whole Installation table A5:G18:"]
["Apr",30,0.9,5.4,10,0.9,1.2,null,null,null,"Apr",0.5,1.8,0.5,0.7,null,"Mean: for 1/2 hourly and daily periods calculate mean of values across all operational combustion lines for the month"]
["May",30,0.8,1.2,10,0.8,1,null,null,null,"May",0.4,0.7,0.4,0.5]
["Jun",30,0.9,9.9,10,0.9,1.6,null,null,null,"Jun",0.4,3.9,0.4,0.8]
["Jul",30,1.1000000000000001,17.3,10,0.89999999999999991,2.4,null,null,null,"Jul",0.4,10,0.2,1.5,null,"Maximum: for 1/2 hourly and daily periods use the highest value across all operational combustion lines for the month"]
["Aug",30,0.6,3.4,10,0.6,1.2,null,null,null,"Aug",0.1,1.5,0.1,0.2]
["Sep",30,0.4,5.8,10,0.2,0.5,null,null,null,"Sep",0.2,1.3,0.1,0.2]
["Oct",30,0.5,17.700000000000003,10,0.4,1.6,null,null,null,"Oct",0.3,0.6,0.2,0.4]
["Nov",30,0.5,1.9000000000000001,10,0.4,0.60000000000000009,null,null,null,"Nov",0.3,1.6,0.3,0.4]
["Dec",30,0.5,4.3,10,0.5,0.7,null,null,null,"Dec",0.3,0.5,0.3,0.4]
[null,null,null,null,null,null,null,null,null,null,"Annual",0.375,10,0.33333333333333331,1.5]
[]
[null,null,null,null,null,null,null,null,null,2022,"mg/Nm3","Monthly 1/2 hourly mean","Monthly 1/2 hourly maximum","Monthly daily mean","Monthly daily maximum"]
[null,null,null,null,null,null,null,null,null,"A2","Jan",0.4,3.6,0.4,0.5]
[null,null,null,null,null,null,null,null,null,null,"Feb",0.4,4.9000000000000004,0.4,0.5]
[null,null,null,null,null,null,null,null,null,null,"Mar",0.4,5,0.4,0.6]
[null,null,null,null,null,null,null,null,null,null,"Apr",0.4,3.6,0.4,0.5]
[null,null,null,null,null,null,null,null,null,null,"May",0.4,0.5,0.4,0.5]
[null,null,null,null,null,null,null,null,null,null,"Jun",0.5,6,0.5,0.8]
[null,null,null,null,null,null,null,null,null,null,"Jul",0.7,7.3,0.7,0.9]
[null,null,null,null,null,null,null,null,null,null,"Aug",0.5,1.9,0.5,1]
[null,null,null,null,null,null,null,null,null,null,"Sep",0.2,4.5,0.1,0.3]
[null,null,null,null,null,null,null,null,null,null,"Oct",0.2,17.100000000000001,0.2,1.2]
[null,null,null,null,null,null,null,null,null,null,"Nov",0.2,0.3,0.1,0.2]
[null,null,null,null,null,null,null,null,null,null,"Dec",0.2,3.8,0.2,0.3]
[null,null,null,null,null,null,null,null,null,null,"Annual",0.37500000000000006,17.100000000000001,0.35833333333333334,1.2]
[]
[null,null,null,null,null,null,null,null,null,{"$f":"+A6","v":2022},"mg/Nm3","Monthly 1/2 hourly mean","Monthly 1/2 hourly maximum","Monthly daily mean","Monthly daily maximum"]
[null,null,null,null,null,null,null,null,null,"A3","Jan"]
[null,null,null,null,null,null,null,null,null,null,"Feb"]
[null,null,null,null,null,null,null,null,null,null,"Mar"]
[null,null,null,null,null,null,null,null,null,null,"Apr"]
[null,null,null,null,null,null,null,null,null,null,"May"]
[null,null,null,null,null,null,null,null,null,null,"Jun"]
[null,null,null,null,null,null,null,null,null,null,"Jul"]
[null,null,null,null,null,null,null,null,null,null,"Aug"]
[null,null,null,null,null,null,null,null,null,null,"Sep"]
[null,null,null,null,null,null,null,null,null,null,"Oct"]
[null,null,null,null,null,null,null,null,null,null,"Nov"]
["Comments :",null,null,null,null,null,null,null,null,null,"Dec"]
[null,null,null,null,null,null,null,null,null,null,"Annual",{"$f":"AVERAGE(L37:L48)","v":{"$error":"#DIV/0!"}},{"$f":"MAX(M37:M48)","v":0},{"$f":"AVERAGE(N37:N48)","v":{"$error":"#DIV/0!"}},{"$f":"MAX(O37:O48)","v":0}]
[]
[null,null,null,null,null,null,null,null,null,{"$f":"+A6","v":2022},"mg/Nm3","Monthly 1/2 hourly mean","Monthly 1/2 hourly maximum","Monthly daily mean","Monthly daily maximum"]
[null,null,null,null,null,null,null,null,null,"A4","Jan"]
[null,null,null,null,null,null,null,null,null,null,"Feb"]
[null,null,null,null,null,null,null,null,null,null,"Mar"]
[null,null,null,null,null,null,null,null,null,null,"Apr"]
[null,null,null,null,null,null,null,null,null,null,"May"]
[null,null,null,null,null,null,null,null,null,null,"Jun"]
[null,null,null,null,null,null,null,null,null,null,"Jul"]
[null,null,null,null,null,null,null,null,null,null,"Aug"]
[null,null,null,null,null,null,null,null,null,null,"Sep"]
[null,null,null,null,null,null,null,null,null,null,"Oct"]
[null,null,null,null,null,null,null,null,null,null,"Nov"]
[null,null,null,null,null,null,null,null,null,null,"Dec"]
[null,null,null,null,null,null,null,null,null,null,"Annual",{"$f":"AVERAGE(L52:L63)","v":{"$error":"#DIV/0!"}},{"$f":"MAX(M52:M63)","v":0},{"$f":"AVERAGE(N52:N63)","v":{"$error":"#DIV/0!"}},{"$f":"MAX(O52:O63)","v":0}]
[]
[null,null,null,null,null,null,null,null,null,{"$f":"+A6","v":2022},"mg/Nm3","Monthly 1/2 hourly mean","Monthly 1/2 hourly maximum","Monthly daily mean","Monthly daily maximum"]
[null,null,null,null,null,null,null,null,null,"A5","Jan"]
[null,null,null,null,null,null,null,null,null,null,"Feb"]
[null,null,null,null,null,null,null,null,null,null,"Mar"]
[null,null,null,null,null,null,null,null,null,null,"Apr"]
[null,null,null,null,null,null,null,null,null,null,"May"]
[null,null,null,null,null,null,null,null,null,null,"Jun"]
[null,null,null,null,null,null,null,null,null,null,"Jul"]
[null,null,null,null,null,null,null,null,null,null,"Aug"]
[null,null,null,null,null,null,null,null,null,null,"Sep"]
[null,null,null,null,null,null,null,null,null,null,"Oct"]
[null,null,null,null,null,null,null,null,null,null,"Nov"]
[null,null,null,null,null,null,null,null,null,null,"Dec"]
[null,null,null,null,null,null,null,null,null,null,"Annual",{"$f":"AVERAGE(L67:L78)","v":{"$error":"#DIV/0!"}},{"$f":"MAX(M67:M78)","v":0},{"$f":"AVERAGE(N67:N78)","v":{"$error":"#DIV/0!"}},{"$f":"MAX(O67:O78)","v":0}]

{"sheet":"CO 95% 10 min","index":19,"n_rows":79,"n_cols":19,"rows_kept":79,"cut":false,"hidden":false,"merged":[[3,18,7,20],[9,18,11,20],[12,18,15,20],[66,10,78,10],[4,1,4,4],[4,5,4,7],[4,10,4,16],[6,10,18,10],[21,10,33,10],[36,10,48,10],[47,0,47,7],[48,0,51,7],[51,10,63,10]]}
[{"$f":"+'Cover Page'!$B$29","v":"Annual Performance Report 2022"},null,null,null,{"$f":"+'Cover Page'!$B$33","v":"Eastcroft Energy from Waste Plant"}]
[]
["Monitoring of Carbon Monoxide (10-minute avg)",null,null,null,"Whole Installation",null,null,"See  Notes in Cell S3",null,"Monitoring of Carbon Monoxide (10-minute avg)",null,null,null,null,"Per Combustion Line",null,"Notes:",null,"Notes:"]
[null,null,null,null,null,null,null,null,null,null,null,null,null,null,null,null,null,null,"User to add logic to complete Whole installation, Table A5:H18. From the data in Per Combustion Line, Table K6:Q79, subject to No. of lines installed"]
["mg/Nm3","10-minute Reference Periods",null,null,null,"Daily Reference Periods"]
[2022,"95%ile 10-min avg CO ELV","95%ile 10-min avg maximum","Monthly CO 10-min avg mean","10-min avg maximum","Daily CO ELV","Monthly daily mean","Highest daily maximum",null,null,2022,"mg/Nm3","95%ile 10-min avg maximum","Monthly CO 10-min avg mean","10-min avg maximum","Monthly daily mean","Monthly daily maximum"]
["Jan",150,300,9,497.6,50,9,497.6,null,null,"A1","Jan",150,4.0999999999999996,350.1,4.0999999999999996,6.2]
["Feb",150,300,10,233.1,50,10,233.1,null,null,null,"Feb",150,5,126.8,5,7]
["Mar",150,300,9.1999999999999993,221.7,50,9.1999999999999993,221.7,null,null,null,"Mar",150,4.5,130,4.4000000000000004,6.8,null,"Whole Installation table A5:H18:"]
["Apr",150,300,9.8000000000000007,431.4,50,9.8000000000000007,431.4,null,null,null,"Apr",150,4.4000000000000004,198.1,4.4000000000000004,6.2,null,"Mean: for 10-min and daily periods use average of all operational combustion lines."]
["May",150,300,9.5,295.7,50,9.5,295.7,null,null,null,"May",150,4.5,168.9,4.5,6.8]
["Jun",150,300,8.1999999999999993,469.7,50,8.1999999999999993,469.7,null,null,null,"Jun",150,3.4,150.5,3.3,4.5999999999999996]
["Jul",150,300,8.1,596.29999999999995,50,8.1,596.29999999999995,null,null,null,"Jul",150,3.8,223.8,3.2,6.6,null,"Maximum: for 10-min and daily periods use the highest of all operational combustion lines in any month."]
["Aug",150,300,5.3000000000000007,669.8,50,5.3000000000000007,669.8,null,null,null,"Aug",150,2.2000000000000002,439,2.2000000000000002,5.9]
["Sep",150,300,9.6000000000000014,577.4,50,9.6000000000000014,577.4,null,null,null,"Sep",150,4.4000000000000004,470,4.4000000000000004,8.1]
["Oct",150,300,12.8,461,50,12.8,461,null,null,null,"Oct",150,5.4,181.2,5.4,9.4]
["Nov",150,300,15.2,519.9,50,15.2,519.9,null,null,null,"Nov",150,6.7,254.4,6.6,12.5]
["Dec",150,300,13.9,413.8,50,13.9,413.8,null,null,null,"Dec",150,6.4,240,6.3,11.1]
[null,null,null,null,null,null,null,null,null,null,null,"Annual",150,null,470,4.4833333333333334,12.5]
[]
[null,null,null,null,null,null,null,null,null,null,2022,"mg/Nm3","95%ile 10-min avg maximum","Monthly CO 10-min avg mean","10-min avg maximum","Monthly daily mean","Monthly daily maximum"]
[null,null,null,null,null,null,null,null,null,null,"A2","Jan",150,4.9000000000000004,147.5,4.8,6.2]
[null,null,null,null,null,null,null,null,null,null,null,"Feb",150,5,106.3,4.9000000000000004,6.6]
[null,null,null,null,null,null,null,null,null,null,null,"Mar",150,4.7,91.7,4.5999999999999996,6.4]
[null,null,null,null,null,null,null,null,null,null,null,"Apr",150,5.4,233.3,5.4,13.8]
[null,null,null,null,null,null,null,null,null,null,null,"May",150,5,126.8,5,6.6]
[null,null,null,null,null,null,null,null,null,null,null,"Jun",150,4.8,319.2,4.7,7.3]
[null,null,null,null,null,null,null,null,null,null,null,"Jul",150,4.3,372.5,3.7,12.2]
[null,null,null,null,null,null,null,null,null,null,null,"Aug",150,3.1,230.8,3.1,6.7]
[null,null,null,null,null,null,null,null,null,null,null,"Sep",150,5.2,107.4,5.2,8.1]
[null,null,null,null,null,null,null,null,null,null,null,"Oct",150,7.4,279.8,6.8,18.3]
[null,null,null,null,null,null,null,null,null,null,null,"Nov",150,8.5,265.5,8.5,18.2]
[null,null,null,null,null,null,null,null,null,null,null,"Dec",150,7.5,173.8,7.5,10.4]
[null,null,null,null,null,null,null,null,null,null,null,"Annual",150,null,372.5,5.3500000000000005,18.3]
[]
[null,null,null,null,null,null,null,null,null,null,{"$f":"+A6","v":2022},"mg/Nm3","95%ile 10-min avg maximum","Monthly CO 10-min avg mean","10-min avg maximum","Monthly daily mean","Monthly daily maximum"]
[null,null,null,null,null,null,null,null,null,null,"A3","Jan"]
[null,null,null,null,null,null,null,null,null,null,null,"Feb"]
[null,null,null,null,null,null,null,null,null,null,null,"Mar"]
[null,null,null,null,null,null,null,null,null,null,null,"Apr"]
[null,null,null,null,null,null,null,null,null,null,null,"May"]
[null,null,null,null,null,null,null,null,null,null,null,"Jun"]
[null,null,null,null,null,null,null,null,null,null,null,"Jul"]
[null,null,null,null,null,null,null,null,null,null,null,"Aug"]
[null,null,null,null,null,null,null,null,null,null,null,"Sep"]
[null,null,null,null,null,null,null,null,null,null,null,"Oct"]
[null,null,null,null,null,null,null,null,null,null,null,"Nov"]
["Comments :",null,null,null,null,null,null,null,null,null,null,"Dec"]
["Environment Agency explanatory note: The 10-minute average ELV is based on the “95th percentile”. In this case this means that 95% of the 10 minute averages in the relevant 24-hour period (i.e. 137) must be below 150 mg/Nm3, and 5% (i.e. 7) are allowed to be any value above 150 mg/Nm3. Whilst we expect operators to minimise CO emissions at all times, it is perfectly acceptable for the value of the maximum 10-minute average to be above 150 mg/Nm3, provided the 95th percentile ELV has been met for that period. ",null,null,null,null,null,null,null,null,null,null,"Annual",{"$f":"AVERAGE(M37:M48)","v":{"$error":"#DIV/0!"}},null,{"$f":"MAX(O37:O48)","v":0},{"$f":"AVERAGE(P37:P48)","v":{"$error":"#DIV/0!"}},{"$f":"MAX(Q37:Q48)","v":0}]
[]
[null,null,null,null,null,null,null,null,null,null,{"$f":"+A6","v":2022},"mg/Nm3","95%ile 10-min avg maximum","Monthly CO 10-min avg mean","10-min avg maximum","Monthly daily mean","Monthly daily maximum"]
[null,null,null,null,null,null,null,null,null,null,"A4","Jan"]
[null,null,null,null,null,null,null,null,null,null,null,"Feb"]
[null,null,null,null,null,null,null,null,null,null,null,"Mar"]
[null,null,null,null,null,null,null,null,null,null,null,"Apr"]
[null,null,null,null,null,null,null,null,null,null,null,"May"]
[null,null,null,null,null,null,null,null,null,null,null,"Jun"]
[null,null,null,null,null,null,null,null,null,null,null,"Jul"]
[null,null,null,null,null,null,null,null,null,null,null,"Aug"]
[null,null,null,null,null,null,null,null,null,null,null,"Sep"]
[null,null,null,null,null,null,null,null,null,null,null,"Oct"]
[null,null,null,null,null,null,null,null,null,null,null,"Nov"]
[null,null,null,null,null,null,null,null,null,null,null,"Dec"]
[null,null,null,null,null,null,null,null,null,null,null,"Annual",{"$f":"AVERAGE(M52:M63)","v":{"$error":"#DIV/0!"}},null,{"$f":"MAX(O52:O63)","v":0},{"$f":"AVERAGE(P52:P63)","v":{"$error":"#DIV/0!"}},{"$f":"MAX(Q52:Q63)","v":0}]
[]
[null,null,null,null,null,null,null,null,null,null,{"$f":"+A6","v":2022},"mg/Nm3","95%ile 10-min avg maximum","Monthly CO 10-min avg mean","10-min avg maximum","Monthly daily mean","Monthly daily maximum"]
[null,null,null,null,null,null,null,null,null,null,"A5","Jan"]
[null,null,null,null,null,null,null,null,null,null,null,"Feb"]
[null,null,null,null,null,null,null,null,null,null,null,"Mar"]
[null,null,null,null,null,null,null,null,null,null,null,"Apr"]
[null,null,null,null,null,null,null,null,null,null,null,"May"]
[null,null,null,null,null,null,null,null,null,null,null,"Jun"]
[null,null,null,null,null,null,null,null,null,null,null,"Jul"]
[null,null,null,null,null,null,null,null,null,null,null,"Aug"]
[null,null,null,null,null,null,null,null,null,null,null,"Sep"]
[null,null,null,null,null,null,null,null,null,null,null,"Oct"]
[null,null,null,null,null,null,null,null,null,null,null,"Nov"]
[null,null,null,null,null,null,null,null,null,null,null,"Dec"]
[null,null,null,null,null,null,null,null,null,null,null,"Annual",{"$f":"AVERAGE(M67:M78)","v":{"$error":"#DIV/0!"}},null,{"$f":"MAX(O67:O78)","v":0},{"$f":"AVERAGE(P67:P78)","v":{"$error":"#DIV/0!"}},{"$f":"MAX(Q67:Q78)","v":0}]

{"sheet":"NH3","index":20,"n_rows":79,"n_cols":17,"rows_kept":79,"cut":false,"hidden":false,"merged":[[3,16,7,18],[9,16,11,18],[12,16,15,18],[66,9,78,9],[4,1,4,3],[4,4,4,6],[4,9,4,14],[6,9,18,9],[21,9,33,9],[36,9,48,9],[47,0,47,6],[48,0,51,6],[51,9,63,9]]}
["Annual Performance Report 2022",null,null,null,"Eastcroft Energy from Waste Plant"]
[]
["Monitoring of Ammnonia emissions ",null,null,"Whole Installation",null,null,"See  Notes in Cell Q3",null,null,"Monitoring of Ammnonia emissions ",null,null,null,"Per Combustion Line",null,null,"Notes:"]
[null,null,null,null,null,null,null,null,null,null,null,null,null,null,null,null,"User to add logic to complete Whole installation, Table A5:G18. From the data in Per Combustion Line, Table J6:O79, subject to No. of lines installed"]
["mg/Nm3","1/2 Hourly Reference Periods",null,null,"Daily Reference Periods"]
[2022,"1/2 hourly NH3 ELV","Monthly 1/2 hourly mean","Highest 1/2 hourly maximum","Daily NH3 ELV","Monthly daily mean","Highest daily maximum",null,null,2022,"mg/Nm3","Monthly 1/2 hourly mean","Monthly 1/2 hourly maximum","Monthly daily mean","Monthly daily maximum"]
["Jan",0,1.1000000000000001,4.3,10,1.1000000000000001,2.1,null,null,"A1","Jan",0.5,2.4,0.5,0.9]
["Feb",0,1.1000000000000001,6.2,10,0.9,1.5,null,null,null,"Feb",0.5,2.6,0.4,0.8]
["Mar",0,0.9,4.8,10,0.9,1.4,null,null,null,"Mar",0.4,1.8,0.4,0.6,null,"Whole Installation table A5:G18:"]
["Apr",0,1.1000000000000001,16.399999999999999,10,0.9,2.6,null,null,null,"Apr",0.5,10.6,0.4,1.1000000000000001,null,"Mean: for 1/2 hourly and daily periods calculate mean of values across all operational combustion lines for the month"]
["May",0,0.7,4.5,10,0.7,1,null,null,null,"May",0.3,1.7,0.3,0.4]
["Jun",0,0.7,6.9,10,0.5,1.1000000000000001,null,null,null,"Jun",0.3,4.4000000000000004,0.2,0.6]
["Jul",0,3.5,33.799999999999997,10,2.9,6.1,null,null,null,"Jul",1.8,14.9,1.5,3.8,null,"Maximum: for 1/2 hourly and daily periods use the highest value across all operational combustion lines for the month"]
["Aug",0,2,18.100000000000001,10,2,4,null,null,null,"Aug",0.9,11.5,0.9,2.4]
["Sep",0,0.9,5.6999999999999993,10,0.9,1.4,null,null,null,"Sep",0.4,3.3,0.4,0.6]
["Oct",0,1.6,21.3,10,1.6,7.7,null,null,null,"Oct",0.8,15.4,0.8,5.5]
["Nov",0,2,23.200000000000003,10,1.9,4.2,null,null,null,"Nov",1.1000000000000001,14.4,1,2.5]
["Dec",0,1.8,11.7,10,1.8,4,null,null,null,"Dec",1.1000000000000001,5.2,1.1000000000000001,2.2000000000000002]
[null,null,null,null,null,null,null,null,null,null,"Annual",0.71666666666666667,15.4,0.65833333333333333,5.5]
[]
[null,null,null,null,null,null,null,null,null,2022,"mg/Nm3","Monthly 1/2 hourly mean","Monthly 1/2 hourly maximum","Monthly daily mean","Monthly daily maximum"]
[null,null,null,null,null,null,null,null,null,"A2","Jan",0.6,1.9,0.6,1.2]
[null,null,null,null,null,null,null,null,null,null,"Feb",0.6,3.6,0.5,0.7]
[null,null,null,null,null,null,null,null,null,null,"Mar",0.5,3,0.5,0.8]
[null,null,null,null,null,null,null,null,null,null,"Apr",0.6,5.8,0.5,1.5]
[null,null,null,null,null,null,null,null,null,null,"May",0.4,2.8,0.4,0.6]
[null,null,null,null,null,null,null,null,null,null,"Jun",0.4,2.5,0.3,0.5]
[null,null,null,null,null,null,null,null,null,null,"Jul",1.7,18.899999999999999,1.4,2.2999999999999998]
[null,null,null,null,null,null,null,null,null,null,"Aug",1.1000000000000001,6.6,1.1000000000000001,1.6]
[null,null,null,null,null,null,null,null,null,null,"Sep",0.5,2.4,0.5,0.8]
[null,null,null,null,null,null,null,null,null,null,"Oct",0.8,5.9,0.8,2.2000000000000002]
[null,null,null,null,null,null,null,null,null,null,"Nov",0.9,8.8000000000000007,0.9,1.7]
[null,null,null,null,null,null,null,null,null,null,"Dec",0.7,6.5,0.7,1.8]
[null,null,null,null,null,null,null,null,null,null,"Annual",0.73333333333333328,18.899999999999999,0.68333333333333324,2.2999999999999998]
[]
[null,null,null,null,null,null,null,null,null,{"$f":"+A6","v":2022},"mg/Nm3","Monthly 1/2 hourly mean","Monthly 1/2 hourly maximum","Monthly daily mean","Monthly daily maximum"]
[null,null,null,null,null,null,null,null,null,"A3","Jan"]
[null,null,null,null,null,null,null,null,null,null,"Feb"]
[null,null,null,null,null,null,null,null,null,null,"Mar"]
[null,null,null,null,null,null,null,null,null,null,"Apr"]
[null,null,null,null,null,null,null,null,null,null,"May"]
[null,null,null,null,null,null,null,null,null,null,"Jun"]
[null,null,null,null,null,null,null,null,null,null,"Jul"]
[null,null,null,null,null,null,null,null,null,null,"Aug"]
[null,null,null,null,null,null,null,null,null,null,"Sep"]
[null,null,null,null,null,null,null,null,null,null,"Oct"]
[null,null,null,null,null,null,null,null,null,null,"Nov"]
["Comments :",null,null,null,null,null,null,null,null,null,"Dec"]
["An indicated ELV value of zero in the table above means that no ammonia limit is set in the permit.  ",null,null,null,null,null,null,null,null,null,"Annual",{"$f":"AVERAGE(L37:L48)","v":{"$error":"#DIV/0!"}},{"$f":"MAX(M37:M48)","v":0},{"$f":"AVERAGE(N37:N48)","v":{"$error":"#DIV/0!"}},{"$f":"MAX(O37:O48)","v":0}]
[]
[null,null,null,null,null,null,null,null,null,{"$f":"+A6","v":2022},"mg/Nm3","Monthly 1/2 hourly mean","Monthly 1/2 hourly maximum","Monthly daily mean","Monthly daily maximum"]
[null,null,null,null,null,null,null,null,null,"A4","Jan"]
[null,null,null,null,null,null,null,null,null,null,"Feb"]
[null,null,null,null,null,null,null,null,null,null,"Mar"]
[null,null,null,null,null,null,null,null,null,null,"Apr"]
[null,null,null,null,null,null,null,null,null,null,"May"]
[null,null,null,null,null,null,null,null,null,null,"Jun"]
[null,null,null,null,null,null,null,null,null,null,"Jul"]
[null,null,null,null,null,null,null,null,null,null,"Aug"]
[null,null,null,null,null,null,null,null,null,null,"Sep"]
[null,null,null,null,null,null,null,null,null,null,"Oct"]
[null,null,null,null,null,null,null,null,null,null,"Nov"]
[null,null,null,null,null,null,null,null,null,null,"Dec"]
[null,null,null,null,null,null,null,null,null,null,"Annual",{"$f":"AVERAGE(L52:L63)","v":{"$error":"#DIV/0!"}},{"$f":"MAX(M52:M63)","v":0},{"$f":"AVERAGE(N52:N63)","v":{"$error":"#DIV/0!"}},{"$f":"MAX(O52:O63)","v":0}]
[]
[null,null,null,null,null,null,null,null,null,{"$f":"+A6","v":2022},"mg/Nm3","Monthly 1/2 hourly mean","Monthly 1/2 hourly maximum","Monthly daily mean","Monthly daily maximum"]
[null,null,null,null,null,null,null,null,null,"A5","Jan"]
[null,null,null,null,null,null,null,null,null,null,"Feb"]
[null,null,null,null,null,null,null,null,null,null,"Mar"]
[null,null,null,null,null,null,null,null,null,null,"Apr"]
[null,null,null,null,null,null,null,null,null,null,"May"]
[null,null,null,null,null,null,null,null,null,null,"Jun"]
[null,null,null,null,null,null,null,null,null,null,"Jul"]
[null,null,null,null,null,null,null,null,null,null,"Aug"]
[null,null,null,null,null,null,null,null,null,null,"Sep"]
[null,null,null,null,null,null,null,null,null,null,"Oct"]
[null,null,null,null,null,null,null,null,null,null,"Nov"]
[null,null,null,null,null,null,null,null,null,null,"Dec"]
[null,null,null,null,null,null,null,null,null,null,"Annual",{"$f":"AVERAGE(L67:L78)","v":{"$error":"#DIV/0!"}},{"$f":"MAX(M67:M78)","v":0},{"$f":"AVERAGE(N67:N78)","v":{"$error":"#DIV/0!"}},{"$f":"MAX(O67:O78)","v":0}]